Cogmind - Beta 17 @@@ ROGUE MODE // 2026.07.30 @ 19:49:10 // Winter2019/RPGLIKE Player: Gallgagger Result: Establishing 0b11! Performance ------------- Evolutions (9) 4500 Regions Visited (41) 8200 Robots Destroyed (1890) 9450 Value Destroyed (115052) 115052 Prototype IDs (399) 7980 Alien Tech Used (3) 600 Bonus (122244) 122244 TOTAL SCORE: 268026 Bonus ------- Triggered High Security 3500 High Alert Combat Kills 81547 Follower Combat Kills 1736 Hunted by Unchained 3000 Destroyed Unchained 5000 Entered Garrisons 200 Network Hubs Disabled 600 Aligned with FarCom 300 Met Data Miner 300 Destroyed Z-Imprinter 1000 Acquired ECA 300 Met Zhirov 300 Built Enhanced Grunts 300 Met R17 at Cetus 500 Met R17 at Research 2000 Scanned by Researcher 500 Destroyed MAIN.C Guards 500 Met MAIN.C 5000 Destroyed MAIN.C Shell 5000 Destroyed MAIN.C 10000 Win 3000 Friendly Fire -2339 Cogmind --------- Core Integrity 424/900 Matter 300/300 Energy 319/340 System Corruption 0% Temperature Cool (42) Movement Flying (13) Location 0b11 Command Parts ------- > --- POWER (2) -------- Concept Zero-point Core Concept Zero-point Core > --- PROPULSION (6) --- Improved Diametric Drive Improved Diametric Drive Improved Diametric Drive Cooled Q-thruster Experimental Biomechanical Wings Experimental Biomechanical Wings > --- UTILITY (14) ----- Experimental Melee Analysis Suite Experimental Melee Analysis Suite Concept Melee Reflex Suite Concept Weapon Articulator Femtoactuators Experimental Actuator Array Experimental Actuator Array Advanced Force Booster Experimental Force Booster Experimental Reaction Control System Graphene Brace Experimental System Purifier > --- WEAPON (4) ------- Gravity Flail 1C-UTU's Sword "Lootmaker" (fused) 1C-UTU's Sword "Choppy" 1C-UTU's Sword "Choppy" > --- INVENTORY (5) ---- Containment Facilitator (1) Peak State ------------ > --- POWER ------------ Concept Zero-point Core Concept Zero-point Core > --- PROPULSION ------- Improved Diametric Drive Improved Diametric Drive Improved Diametric Drive Cooled Q-thruster Experimental Biomechanical Wings Experimental Biomechanical Wings > --- UTILITY ---------- Experimental Melee Analysis Suite Experimental Melee Analysis Suite Concept Melee Reflex Suite Concept Weapon Articulator Experimental Core Analyzer Femtoactuators Experimental Actuator Array Experimental Actuator Array Advanced Force Booster Experimental Force Booster Experimental Reaction Control System Experimental Phase Shifter Graphene Brace Experimental System Purifier > --- WEAPON ----------- Containment Facilitator 1C-UTU's Sword "Lootmaker" 1C-UTU's Sword "Choppy" 1C-UTU's Sword "Choppy" > --- INVENTORY -------- Protomatter Protomatter Protomatter Gravity Flail [Rating: 255] Favorites ----------- Power Zionite Light DM Reactor Engine Light Ion Engine Power Core Concept Zero-point Core Reactor Zionite Light DM Reactor Propulsion Improved Diametric Drive Wheel Wheel Flight Unit Improved Diametric Drive Utility Experimental Actuator Array Device Experimental Actuator Array Storage V4-D3R's Forcewell Processor Experimental Melee Analysis Suite Protection 1C-UTU's Buckler Weapon 1C-UTU's Sword "Choppy" Energy Gun Medium Laser Launcher Z-bomb Delivery System Special Weapon V4-D3R's Forcegen Impact Weapon Gravity Flail Slashing Weapon 1C-UTU's Sword "Choppy" Special Melee Weapon Datajack Build | -11 -10 -10 -9 -9 -9 -8 -8 -8 -8 -7 -7 -7 -7 -7 -7 -6 -6 -6 -6 -6 -6 -5 -5 -5 -5 -5 -5 -4 -4 -4 -4 -4 -4 -3 -3 -3 -2 -2 -2 -1 -1 ------- Run | Yrd Mat Min Mat Min Exi Min Mat Gar Mat Fac Was Fac Low Low Dat Pro Fac Low Low Zio Dee Pro Fac Ext Cet Arc Hub Fac Was Fac Upp Upp Zhi Pro Res Tes Res Qua Frg Acc Com Slots Evolved 22 | 4 2 . 2 1 . . 1 . 1 . . 1 . . . . 1 . . . 1 . . 1 . . 1 . . 1 . . . . . 1 . 2 1 1 . Power 1 | . . . . . . . . . . . . . . . . . . . . . . . . . . . 1 . . . . . . . . . . . . . . Propulsion 5 | 1 1 . . . . . 1 . . . . . . . . . 1 . . . . . . . . . . . . . . . . . . . . 1 . . . Utility 13 | 2 1 . 2 1 . . . . 1 . . 1 . . . . . . . . 1 . . 1 . . . . . 1 . . . . . . . . 1 1 . Weapon 3 | 1 . . . . . . . . . . . . . . . . . . . . . . . . . . . . . . . . . . . 1 . 1 . . . Parts Attached 168 | 8 7 . 15 1 . 8 6 . 6 8 . 7 . . . . 9 . . . 4 . 5 . . . 10 2 . 12 . 2 1 . 3 17 . 6 20 2 9 Power 16 | 1 . . 1 . . . . . . 1 . . . . . . 1 . . . 1 . . . . . 4 . . . . . . . . 2 . . 3 . 2 Engine 3 | 1 . . . . . . . . . . . . . . . . . . . . . . . . . . 1 . . . . . . . . 1 . . . . . Core 8 | . . . 1 . . . . . . 1 . . . . . . 1 . . . . . . . . . 2 . . . . . . . . . . . 3 . . Reactor 5 | . . . . . . . . . . . . . . . . . . . . . 1 . . . . . 1 . . . . . . . . 1 . . . . 2 Propulsion 34 | 3 3 . 9 . . . 3 . . 2 . . . . . . 4 . . . . . . . . . . . . 4 . . . . 1 . . 2 3 . . Treads . | . . . . . . . . . . . . . . . . . . . . . . . . . . . . . . . . . . . . . . . . . . Leg . | . . . . . . . . . . . . . . . . . . . . . . . . . . . . . . . . . . . . . . . . . . Wheel 3 | 3 . . . . . . . . . . . . . . . . . . . . . . . . . . . . . . . . . . . . . . . . . Hover . | . . . . . . . . . . . . . . . . . . . . . . . . . . . . . . . . . . . . . . . . . . Flight 31 | . 3 . 9 . . . 3 . . 2 . . . . . . 4 . . . . . . . . . . . . 4 . . . . 1 . . 2 3 . . Utility 100 | 2 3 . 4 1 . 4 3 . 6 5 . 6 . . . . 4 . . . 3 . 5 . . . 6 2 . 8 . 2 1 . 2 10 . 3 13 2 5 Device 64 | 2 . . 1 . . 1 1 . 3 5 . 4 . . . . 3 . . . 2 . 5 . . . 4 2 . 6 . 2 . . 2 4 . 3 10 . 4 Storage 1 | . . . . . . . . . . . . . . . . . . . . . . . . . . . . . . . . . . . . 1 . . . . . Processor 15 | . . . . . . 2 . . . . . 2 . . . . 1 . . . . . . . . . 2 . . . . . . . . 3 . . 2 2 1 Hackware . | . . . . . . . . . . . . . . . . . . . . . . . . . . . . . . . . . . . . . . . . . . Protection 20 | . 3 . 3 1 . 1 2 . 3 . . . . . . . . . . . 1 . . . . . . . . 2 . . 1 . . 2 . . 1 . . Artifact . | . . . . . . . . . . . . . . . . . . . . . . . . . . . . . . . . . . . . . . . . . . Weapon 18 | 2 1 . 1 . . 4 . . . . . 1 . . . . . . . . . . . . . . . . . . . . . . . 5 . 1 1 . 2 Energy Gun 6 | 2 . . 1 . . 2 . . . . . . . . . . . . . . . . . . . . . . . . . . . . . 1 . . . . . Energy Cannon . | . . . . . . . . . . . . . . . . . . . . . . . . . . . . . . . . . . . . . . . . . . Ballistic Gun . | . . . . . . . . . . . . . . . . . . . . . . . . . . . . . . . . . . . . . . . . . . Ballistic Cannon . | . . . . . . . . . . . . . . . . . . . . . . . . . . . . . . . . . . . . . . . . . . Launcher 2 | . . . . . . . . . . . . . . . . . . . . . . . . . . . . . . . . . . . . 1 . . . . 1 Special Weapon 1 | . . . . . . . . . . . . . . . . . . . . . . . . . . . . . . . . . . . . 1 . . . . . Impact Weapon 1 | . . . . . . . . . . . . . . . . . . . . . . . . . . . . . . . . . . . . . . . . . 1 Slashing Weapon 6 | . . . . . . 2 . . . . . 1 . . . . . . . . . . . . . . . . . . . . . . . 1 . 1 1 . . Piercing Weapon . | . . . . . . . . . . . . . . . . . . . . . . . . . . . . . . . . . . . . . . . . . . Special Melee Weapon 2 | . 1 . . . . . . . . . . . . . . . . . . . . . . . . . . . . . . . . . . 1 . . . . . Unidentified Prototypes 63 | . . . 1 . . 5 1 . . . . 3 . . . . 4 . . . 4 . 4 . . . 4 . . 3 . 1 2 . 3 12 . 4 5 . 7 Corrupted Parts 5 | . . . . . . 5 . . . . . . . . . . . . . . . . . . . . . . . . . . . . . . . . . . . System Corruption 12 | . . . . . . 12 . . . . . . . . . . . . . . . . . . . . . . . . . . . . . . . . . . . Parts Lost 14 | . 1 . 1 . . . 1 . 1 2 . . . . . . 2 . . . . . . . . . 2 . . . . . . . . . . . 2 . 2 Power . | . . . . . . . . . . . . . . . . . . . . . . . . . . . . . . . . . . . . . . . . . . Propulsion 1 | . . . 1 . . . . . . . . . . . . . . . . . . . . . . . . . . . . . . . . . . . . . . Utility 12 | . 1 . . . . . 1 . 1 2 . . . . . . 2 . . . . . . . . . 2 . . . . . . . . . . . 2 . 1 Weapon 1 | . . . . . . . . . . . . . . . . . . . . . . . . . . . . . . . . . . . . . . . . . 1 Highest Loss Streak 1 | . 1 . 1 . . . 1 . 1 1 . . . . . . 1 . . . . . . . . . 1 . . . . . . . . . . . 1 . 1 To Critical Strikes . | . . . . . . . . . . . . . . . . . . . . . . . . . . . . . . . . . . . . . . . . . . Average Backups 3 | . 1 1 1 3 4 3 1 3 2 3 4 3 3 3 3 3 2 3 3 3 1 3 4 4 4 4 3 4 4 4 5 5 5 5 5 4 4 4 4 3 1 Power . | . . . . . . . . . . . . . . . . . . . . . . 1 1 1 1 1 1 1 1 1 1 1 1 1 1 1 1 1 . . . Propulsion . | . . . . . . . . . . . . . . . . . . . . . . . . . . . . . . . . . . . . . . . . . . Utility 2 | . . . . 1 2 2 1 3 2 3 4 3 3 3 3 3 2 3 3 3 1 2 3 3 3 3 2 3 3 3 4 4 4 4 4 3 3 3 2 2 . Weapon . | . . . . 1 2 . . . . . . . . . . . . . . . . . . . . . . . . . . . . . . . . . . . . Tool/Special . | . . . . . . . . . . . . . . . . . . . . . . . . . . . . . . . . . . . . . . . . . . Unused Backups 4 | . . . . . . . 1 . . . . . . . . . . . . . . . . . . . . . . . . . . . . . . . 2 1 . Power . | . . . . . . . . . . . . . . . . . . . . . . . . . . . . . . . . . . . . . . . . . . Propulsion 1 | . . . . . . . . . . . . . . . . . . . . . . . . . . . . . . . . . . . . . . . . 1 . Utility 3 | . . . . . . . 1 . . . . . . . . . . . . . . . . . . . . . . . . . . . . . . . 2 . . Weapon . | . . . . . . . . . . . . . . . . . . . . . . . . . . . . . . . . . . . . . . . . . . Tool/Special . | . . . . . . . . . . . . . . . . . . . . . . . . . . . . . . . . . . . . . . . . . . Average Slot Usage (%) 99 | . 98 100 91 100 100 99 99 100 99 98 93 99 100 100 100 100 99 99 100 100 100 100 100 100 100 100 99 100 100 99 100 100 100 100 100 99 100 98 99 100 98 Engine 1 | . 11 10 8 . . . . . . . . . . . . . . . . . . . . . . . . . . . . . . . . 1 4 4 . . . Core 4 | . . . . 7 7 7 7 7 6 6 6 6 6 6 6 6 5 5 5 5 4 . . . . . . 5 5 4 4 4 4 4 4 2 . . 5 7 6 Reactor 1 | . . . . . . . . . . . . . . . . . . . . . . 5 5 5 5 5 5 5 5 4 4 4 4 4 4 4 4 4 1 . . Flight 24 | . 15 30 22 23 23 23 24 28 26 26 26 25 25 25 25 25 27 29 29 29 27 27 27 26 26 26 25 25 25 24 23 23 23 23 23 22 22 24 24 23 22 Device 29 | . 24 20 11 7 7 7 13 14 19 28 33 32 31 31 31 31 29 29 35 35 33 33 33 34 36 36 36 35 35 36 38 38 38 38 38 34 31 29 33 34 34 Processor 12 | . . . . . . 6 7 7 6 6 6 12 18 18 18 18 16 17 17 17 16 16 16 15 15 15 14 15 15 14 14 14 14 14 14 13 13 12 15 17 17 Protection 9 | . 10 20 31 44 46 37 29 28 25 16 6 6 6 6 6 6 5 4 . . 4 5 5 5 5 5 5 5 5 4 4 4 4 4 4 6 9 7 2 . . Energy Gun 2 | . 23 20 16 15 15 9 . . . . . . . . . . . . . . . . . . . . . . . . . . . . . . . . . . . Slashing Weapon 10 | . . . . . . 5 14 14 13 13 13 12 12 12 12 12 11 11 11 11 11 11 11 10 10 10 10 10 10 9 9 9 9 9 9 10 13 14 16 15 13 Peak Build Rating 255 | 9 12 12 24 25 25 63 71 71 79 83 80 88 87 87 87 87 114 114 108 108 120 119 125 124 124 124 141 145 145 168 168 168 168 168 171 189 185 206 241 249 255 Average Rating 122 | 4 10 12 15 24 25 36 65 71 76 76 80 82 87 87 87 87 99 113 108 108 114 119 120 122 124 124 125 138 145 156 168 168 167 168 168 176 185 200 227 244 245 On Entrance 110 | . 9 12 12 24 25 25 55 71 71 78 80 80 87 87 87 87 87 105 108 108 108 119 119 120 124 124 124 136 145 145 168 168 168 168 168 171 185 185 206 238 249 Avg Prop Armor Cover (%) 4 | . 5 . . . . . . . . 4 . . . . . . . . . . . . . . . . . . . . . . . . . . . . . . 1 Naked Turns . | . . . . . . . . . . . . . . . . . . . . . . . . . . . . . . . . . . . . . . . . . . Heaviest Build 77 | 9 12 11 24 25 25 30 32 32 42 39 26 26 26 26 26 26 31 31 27 33 40 40 40 41 41 41 52 50 44 55 55 55 55 55 55 60 60 62 68 68 77 Greatest Support 77 | 26 22 22 30 30 30 30 40 40 45 47 47 47 47 47 47 47 54 54 54 54 54 54 56 56 56 54 54 54 56 59 59 59 59 59 60 60 60 70 72 69 77 Greatest Overweight (x) 1 | 1 1 . 1 . . . 1 . 1 . . . . . . . . . . . . . . . . . . . . 1 . . . . . . . . 1 . 1 Average Overweight (x) . | . . . . . . . . . . . . . . . . . . . . . . . . . . . . . . . . . . . . . . . . . . Largest Inventory Capacity 5 | 1 3 3 4 4 4 4 4 4 4 4 4 4 4 4 4 4 4 4 4 4 4 4 5 5 5 5 5 5 5 5 5 5 5 5 5 5 5 5 5 5 5 Average Capacity 4 | . 1 3 3 4 4 4 4 4 4 4 4 4 4 4 4 4 4 4 4 4 4 4 4 5 5 5 5 5 5 5 5 5 5 5 5 5 5 5 5 5 5 Most Carried 5 | 1 3 3 4 4 4 4 4 4 4 4 4 4 4 4 4 4 4 4 4 4 4 4 5 5 5 5 5 5 5 5 5 5 5 5 5 5 5 5 5 5 5 Average Carried 4 | . 1 2 3 3 4 3 3 3 3 3 4 3 4 4 4 4 3 3 4 4 3 4 4 4 4 5 4 4 5 4 5 5 5 5 5 4 4 4 4 4 3 Final Capacity 5 | 1 3 3 4 4 4 4 4 4 4 4 4 4 4 4 4 4 4 4 4 4 4 4 5 5 5 5 5 5 5 5 5 5 5 5 5 5 5 5 5 5 5 Final Carried 5 | 1 3 2 4 4 4 3 4 4 3 4 4 4 4 4 4 4 4 4 4 4 4 4 5 5 5 5 5 5 5 5 5 5 5 5 5 5 5 5 5 5 1 Class Distribution -------------------- 81% | Scavenger-Sprinter 5% | Sprinter 5% | Commander-Sprinter 4% | Scavenger-Mutant Dominant Class ---------------- Scavenger-Mutant | -10/Materials Scavenger-Mutant | -10/Mines Sprinter | -9/Materials Sprinter | -9/Mines Sprinter | -9/Exiles Sprinter | -8/Mines Scavenger-Sprinter | -8/Materials Scavenger-Sprinter | -8/Garrison Scavenger-Sprinter | -8/Materials Scavenger-Sprinter | -7/Factory Scavenger-Sprinter | -7/Waste Scavenger-Sprinter | -7/Factory Scavenger-Sprinter | -7/Lower Caves Scavenger-Sprinter | -7/Lower Caves Scavenger-Sprinter | -7/Data Miner Scavenger-Sprinter | -6/Proximity Caves Scavenger-Sprinter | -6/Factory Scavenger-Sprinter | -6/Lower Caves Scavenger-Sprinter | -6/Lower Caves Scavenger-Sprinter | -6/Zion Scavenger-Sprinter | -6/Deep Caves Scavenger-Sprinter | -5/Proximity Caves Scavenger-Sprinter | -5/Factory Commander-Sprinter | -5/Extension Commander-Sprinter | -5/Cetus Commander-Sprinter | -5/Archives Scavenger-Sprinter | -5/Hub_04(d) Scavenger-Sprinter | -4/Factory Scavenger-Sprinter | -4/Waste Scavenger-Sprinter | -4/Factory Scavenger-Sprinter | -4/Upper Caves Scavenger-Sprinter | -4/Upper Caves Scavenger-Sprinter | -4/Zhirov Scavenger-Sprinter | -3/Proximity Caves Scavenger-Sprinter | -3/Research Scavenger-Sprinter | -3/Testing Scavenger-Sprinter | -2/Research Scavenger-Sprinter | -2/Quarantine Scavenger-Sprinter | -2/Protoforge Scavenger-Sprinter | -1/Access Scavenger-Sprinter | -1/Command Resources | -11 -10 -10 -9 -9 -9 -8 -8 -8 -8 -7 -7 -7 -7 -7 -7 -6 -6 -6 -6 -6 -6 -5 -5 -5 -5 -5 -5 -4 -4 -4 -4 -4 -4 -3 -3 -3 -2 -2 -2 -1 -1 ----------- Run | Yrd Mat Min Mat Min Exi Min Mat Gar Mat Fac Was Fac Low Low Dat Pro Fac Low Low Zio Dee Pro Fac Ext Cet Arc Hub Fac Was Fac Upp Upp Zhi Pro Res Tes Res Qua Frg Acc Com Matter Collected 3804 | 258 137 . 185 10 . 142 105 . 130 150 . 174 . . . . 166 10 10 40 80 . 135 20 . . 190 50 . 190 5 58 48 20 50 300 . 100 618 39 384 Remotely . | . . . . . . . . . . . . . . . . . . . . . . . . . . . . . . . . . . . . . . . . . . Salvage Created 107869 | 184 738 50 1610 455 . 379 2061 1240 3891 947 . 6664 331 227 . 1174 3550 889 409 118 652 1245 3929 2156 591 . 6405 543 . 4090 1421 2010 60 550 3647 2315 1438 2368 13757 15454 20321 Parts 5546 | 13 53 . 85 28 . 19 158 87 189 67 . 391 14 16 . 49 194 51 29 5 77 72 245 112 38 9 278 30 . 193 48 91 . 30 195 125 60 93 756 715 931 Haulers Intercepted 10 | . 2 . . . . . . . . . . 2 . . . . 3 . . . . . 1 . . . . . . 1 . 1 . . . . . . . . . Recyclers Shooed . | . . . . . . . . . . . . . . . . . . . . . . . . . . . . . . . . . . . . . . . . . . Parts Field Recycled . | . . . . . . . . . . . . . . . . . . . . . . . . . . . . . . . . . . . . . . . . . . Retrieved Matter . | . . . . . . . . . . . . . . . . . . . . . . . . . . . . . . . . . . . . . . . . . . Parts Self-Destructed 375 | . . . . . . . . . . . . . 13 16 . 49 . 48 29 . . 64 . . . . . . . . 38 88 . 30 . . . . . . . Prevented 11 | . . . . . . . . . . . . . 1 . . . . 5 . . . 5 . . . . . . . . . . . . . . . . . . . Parts Restored . | . . . . . . . . . . . . . . . . . . . . . . . . . . . . . . . . . . . . . . . . . . Kills | -11 -10 -10 -9 -9 -9 -8 -8 -8 -8 -7 -7 -7 -7 -7 -7 -6 -6 -6 -6 -6 -6 -5 -5 -5 -5 -5 -5 -4 -4 -4 -4 -4 -4 -3 -3 -3 -2 -2 -2 -1 -1 ------- Run | Yrd Mat Min Mat Min Exi Min Mat Gar Mat Fac Was Fac Low Low Dat Pro Fac Low Low Zio Dee Pro Fac Ext Cet Arc Hub Fac Was Fac Upp Upp Zhi Pro Res Tes Res Qua Frg Acc Com Combat Hostiles Destroyed 1822 | . 31 6 55 16 . 7 56 32 87 22 . 142 8 8 . 24 53 20 14 1 14 23 75 43 8 2 128 10 . 56 14 26 . 14 52 36 21 24 216 217 261 Melee 1708 | . . . . . . 3 56 32 87 22 . 142 8 8 . 24 53 20 14 1 14 23 75 43 8 2 128 10 . 56 14 26 . 14 52 36 21 24 215 217 260 Guns 107 | . 30 6 53 16 . 2 . . . . . . . . . . . . . . . . . . . . . . . . . . . . . . . . . . . Classes Destroyed 37 | 2 4 1 3 . . . 4 3 . . . . . . . 1 2 1 . 1 2 2 1 . . . . . . 1 . . . . . 1 . 2 3 2 1 Worker 4 | . 2 . . 1 . 1 . . . . . . . . . . . . . . . . . . . . . . . . . . . . . . . . . . . Builder 2 | . . . . . . . . . . . . . . . . . . . . . . . . . . . . . . . . . . . . . . 1 . 1 . Tunneler 5 | 5 . . . . . . . . . . . . . . . . . . . . . . . . . . . . . . . . . . . . . . . . . Hauler 10 | . 2 . . . . . . . . . . 2 . . . . 3 . . . . . 1 . . . . . . 1 . 1 . . . . . . . . . Recycler 7 | 1 . . . . . . 1 . . . . 1 . . . . . . . . . . 3 . . . . . . . . . . . . . . . . . 1 Carrier 1 | . . . . . . . . . . . . . . . . . . . . . . . . . . . . . . . . . . . . . . . . . 1 Mechanic 4 | . . . . . . . . . . . . . . . . . . . . . . . . . . . . . . . . . . . . . . . . 1 3 Operator 14 | . . . . . . . 1 . . . . 1 . . . . 3 . . . . . 2 . . . . . . . . . . . 3 1 . 1 1 . 1 Drone 11 | . . . . . . . . . . . . . . . . . . . . . . 2 1 . . . . . . 1 . . . 2 . . . . 4 1 . Turret 6 | . . . . . . . . . . . . . . . . . 6 . . . . . . . . . . . . . . . . . . . . . . . . Watcher 32 | . . . . . . . . . . . . . . . . . 1 . . . . . 6 2 2 . . . . 3 . . . . . 3 1 1 4 5 4 Swarmer 214 | . 5 . 11 11 . . 6 11 9 3 . 14 3 6 . 6 5 6 8 . . 5 7 . . . 2 4 . 12 2 3 . 7 4 9 5 9 4 18 19 Cutter 19 | . . . . . . . 3 . 2 . . . . . . . 4 . . . . . 3 . . . 1 . . . . . . . . . . . . 3 3 Saboteur 37 | . . . . . . . . . . . . . . . . . . . . . . . 2 1 . . 3 . . . . . . . . . . . 6 9 16 Grunt 689 | . 26 . 32 3 . 5 35 16 43 8 . 39 4 1 . 11 24 8 5 . . 5 26 23 . . 59 3 . 10 9 12 . 3 31 15 13 . 59 86 75 Brawler 62 | . . . . . . . . 1 8 1 . 8 1 . . 1 1 1 . . . . 2 2 . . 11 . . 2 1 . . . 1 1 1 . 11 5 3 Duelist 68 | . . . 1 . . 1 1 . 11 1 . 8 . . . 2 2 . . . . . 2 3 . . 5 . . . 1 1 . . 2 1 . . 15 7 4 Protector 59 | . . . 1 . . . . . 7 . . 14 . . . . . . . . . 4 1 1 . . 3 . . 1 . . . . . 2 . . 5 7 13 Researcher 16 | . . . . . . . . . . . . . . . . . . . . . . . . . . . . . . . . . . . . 7 . 5 4 . . Sentry 143 | . . . 10 2 . . 8 . 7 4 . 8 . 1 . 2 6 . . . . 2 7 7 . 2 16 2 . 6 1 . . 1 4 3 1 . 16 19 8 Demolisher 7 | . . . . . . . . . . . . . . . . . . . . . . 4 . 2 . . . . . . . . . . . . . . . . 1 Specialist 23 | . . . . . . . . 2 . . . 2 . . . . . . . . . . 4 1 . . 2 . . 3 . 3 . . . . . . 3 . 3 Hunter 117 | . . . . . . . 2 1 . 2 . 27 . . . . 3 3 . . . . 9 1 . . 9 . . 10 . 4 . . 4 2 . 5 5 12 18 Programmer 180 | . . . . . . . . 1 . 3 . 21 . . . 1 4 1 . . . . 9 1 . . 10 . . 5 . 2 . . 5 3 1 9 30 25 49 Heavy 11 | . . . . . . . 1 . . . . 1 . . . . 2 . . . . . 1 . . . 1 1 . . . . . . . . . . . 2 2 Q-Series 2 | . . . . . . . . . . . . . . . . . . . . . . . . . . . . . . . . . . . . . . . 2 . . Behemoth 19 | . . . . . . . . . . . . . . . . 1 1 1 1 . . 1 1 1 . . . . . 1 . 1 . 1 1 . . . 1 3 4 Cetus Guard 8 | . . . . . . . . . . . . . . . . . . . . . . . . . 8 . . . . . . . . . . . . . . . . M Guard 2 | . . . . . . . . . . . . . . . . . . . . . . . . . . . . . . . . . . . . . . . . . 2 Lightning 6 | . . . . . . . . . . . . . . . . . . . . . . . . . . . 6 . . . . . . . . . . . . . . Hotshot 16 | . . . . . . . . . . . . . . . . . . . . . . . . . . . . . . . . . . . . . . . 16 . . Decapitator 20 | . . . . . . . . . . . . . . . . . . . . . . . . . . . . . . . . . . . . . . . 20 . . Immortal 3 | . . . . . . . . . . . . . . . . . . . . . . . . . . . . . . . . . . . . . . . 3 . . Overlord 1 | . . . . . . . . . . . . . . . . . . . . . . . . . . . . . . . . . . . . . . . 1 . . Combat Programmer 3 | . . . . . . . . . . . . . . . . . . . . . . . . . . . . . . 1 . . . . . . . . . . 2 Investigator 5 | . . . . . . . . . . . . . . . . . . . . . . . . . . . . . . . . . . . . . . . . 1 4 Striker 25 | . . . . . . . . . . . . . . . . . . . . . . . . . . . . . . . . . . . . . . . . 10 15 Executioner 35 | . . . . . . . . . . . . . . . . . . . . . . . . . . . . . . 1 . . . . . . . . 4 10 20 Alpha 7 4 | . . . . . . . . . . . . . . . . . . . . . . . . . . . . . . . . . . . . . . . 2 . 2 Fortress 1 | . . . . . . . . . . . . . . . . . . . . . . . . . . . . . . . . . . . . . . 1 . . . V-Series 9 | . . . . . . . . . . . . . . . . . . . . . . . . . . . . . . . . . . . . . . . 9 . . Z-Light 11 | . . . . . . . . . . . . . . . . . . . . . 11 . . . . . . . . . . . . . . . . . . . . Tinkerer 3 | . . . . . . . . . . . . . . . . . . . . 1 . . . . . . . . . . . 1 . . . . . . 1 . . Assembled 6 | . . 6 . . . . . . . . . . . . . . . . . . . . . . . . . . . . . . . . . . . . . . . Golem 2 | . . . . . . . . . . . . . . . . . . . . . 2 . . . . . . . . . . . . . . . . . . . . Thug 4 | . . . . . . . . . . . . . . . . . . . . . . . . 2 . . . . . . 2 . . . . . . . . . . Butcher 3 | . . . . . . . . 1 . . . . . . . . . 2 . . . . . . . . . . . . . . . . . . . . . . . Guerrilla 1 | . . . . . . . . 1 . . . . . . . . . . . . . . . . . . . . . . . . . . . . . . . . . Mutant 3 | . . . . . . . . . . . . . . . . . . 1 . 1 . . . . . . . . . . 1 . . . . . . . . . . Best Kill Streak 45 | 6 8 2 6 5 . 3 7 7 18 4 . 13 4 7 . 7 8 12 9 1 6 13 15 9 5 2 21 5 . 14 9 10 . 10 15 13 13 17 30 45 35 Combat Bots Only 34 | . 7 2 6 5 . 3 7 7 18 4 . 13 4 7 . 7 6 12 9 1 6 13 9 9 4 2 21 5 . 14 9 9 . 10 14 8 12 14 30 32 34 Max Kills in Single Turn 3 | 1 1 1 2 1 . 1 2 2 1 1 . 2 1 2 . 1 2 2 1 1 1 1 1 2 1 1 2 1 . 2 1 2 . 1 2 2 2 2 2 3 3 Gunslinging 1 | . . . 1 . . . . . . . . . . . . . . . . . . . . . . . . . . . . . . . . . . . . . . Exploded . | . . . . . . . . . . . . . . . . . . . . . . . . . . . . . . . . . . . . . . . . . . Melee 3 | . . . . . . 1 2 2 1 1 . 2 1 2 . 1 1 2 1 1 1 1 1 2 1 1 2 1 . 2 1 2 . 1 2 2 2 2 2 3 3 Uniques/NPCs Destroyed 9 | . . . . . . 1 . . . . . . . . . . 1 . . . 1 . . . . . . . . 3 . . . . . 1 . . . . 2 1C-UTU (-8/Mines) GL-D0S (-6/Factory) Z-Imprinter (-6/Deep Caves) QV-33N (-4/Factory) BL-1NK (-4/Factory) CL-0N3 (-4/Factory) V4-D3R (-3/Testing) MAIN.C Shell (-1/Command) MAIN.C (-1/Command) Combat | -11 -10 -10 -9 -9 -9 -8 -8 -8 -8 -7 -7 -7 -7 -7 -7 -6 -6 -6 -6 -6 -6 -5 -5 -5 -5 -5 -5 -4 -4 -4 -4 -4 -4 -3 -3 -3 -2 -2 -2 -1 -1 -------- Run | Yrd Mat Min Mat Min Exi Min Mat Gar Mat Fac Was Fac Low Low Dat Pro Fac Low Low Zio Dee Pro Fac Ext Cet Arc Hub Fac Was Fac Upp Upp Zhi Pro Res Tes Res Qua Frg Acc Com Hostile Shots Fired 5590 | . 125 43 217 71 1 24 118 134 210 197 . 382 11 17 . 61 190 50 36 3 42 27 261 98 39 . 365 31 . 247 18 90 . 22 148 54 32 50 535 519 1122 Missed 3228 | . 33 19 89 24 . 11 43 44 82 103 . 211 2 11 . 32 98 13 21 2 20 17 148 55 23 . 190 16 . 141 8 43 . 14 75 33 16 20 341 408 822 Deflected 21 | . . . . . . . . . . . . . . . . . . . . . . . . . . . . . . . . . . . . 5 7 8 1 . . Hits 2362 | . 92 24 128 47 1 13 75 90 128 94 . 171 9 6 . 29 92 37 15 1 22 10 113 43 16 . 175 15 . 106 10 47 . 8 73 21 16 30 194 111 300 Melee 131 | . . 6 2 . . 3 3 2 25 7 . 8 . . . 1 4 1 . . . . 5 6 . . 10 . . 2 . 2 . . . . . . 30 4 10 Projectile 2231 | . 92 18 126 47 1 10 72 88 103 87 . 163 9 6 . 28 88 36 15 1 22 10 108 37 16 . 165 15 . 104 10 45 . 8 73 21 16 30 164 107 290 AOE 37 | . . . . . . . . . 2 . . . . . . . 1 . . . . 2 2 . . . . . . 6 . . . . . . . . 15 4 5 Critical Strikes 146 | . . . 1 . . 1 9 2 13 7 . 3 . . . . 11 2 . . . . 6 3 2 . 11 1 . 10 . 4 . 1 5 . 1 1 27 5 20 Actively Blocked 85 | . . . . . . 1 1 . 4 . . . . . . . 10 2 . . . . 2 . . . . . . 1 . 4 . 1 5 . 1 1 27 5 20 Part Disruptions 20 | . . 1 . . . . . . . . . . . . . . . . . . . . 2 . . . . . . 4 . 1 . . 1 . . . 1 . 10 Actively Blocked 1 | . . 1 . . . . . . . . . . . . . . . . . . . . . . . . . . . . . . . . . . . . . . . Damage Taken 48100 | . 1010 406 1547 519 10 346 1241 1028 2391 1445 . 2606 135 57 . 482 2364 671 215 19 840 276 2262 862 435 . 3837 327 . 2582 194 859 . 179 1653 370 307 369 5611 2889 7756 Core 34214 | . 743 319 957 283 4 189 746 587 1302 950 . 1748 82 42 . 276 1615 502 178 19 660 215 1608 566 325 . 2769 202 . 1874 129 602 . 145 1151 233 154 223 4067 2368 6381 Absorbed by Shields 583 | . . . . . . . . 54 . . . . . . . . . . . . . . . 164 . . . . . . . . . . . . . . 22 . 343 Redirected to Core 27109 | . 480 179 772 206 4 155 557 472 983 736 . 1343 65 37 . 244 1314 337 121 . 384 163 1293 513 296 . 2113 181 . 1574 129 511 . 123 904 193 154 223 3328 1915 5107 Redirected to Shielding 672 | . 18 35 86 47 . 28 56 26 235 141 . . . . . . . . . . . . . . . . . . . . . . . . . . . . . . . Ignored by Resistances 895 | . . . . . . . 101 103 63 24 . . . . . . . . . . . . . . . . . . . . . . . . . . . . 604 . . Regen/Repaired (Parts) 15 | . . . . . . . . . . . . . . . . . . . . . . . . . . . . . . 15 . . . . . . . . . . . Core Remaining (%) 88 | 100 . 90 . . . 100 . . 63 . . . . . . 90 . . . . . 100 . . . . 100 . . . . . . 92 . 90 . . 100 . 47 Volleys Fired 384 | 12 107 24 146 37 1 57 . . . . . . . . . . . . . . . . . . . . . . . . . . . . . . . . . . . Largest 2 | 2 2 2 2 2 2 2 . . . . . . . . . . . . . . . . . . . . . . . . . . . . . . . . . . . Hottest 106 | 100 100 100 106 106 106 90 . . . . . . . . . . . . . . . . . . . . . . . . . . . . . . . . . . . Shots Fired 768 | 24 214 48 292 74 2 114 . . . . . . . . . . . . . . . . . . . . . . . . . . . . . . . . . . . Gun 768 | 24 214 48 292 74 2 114 . . . . . . . . . . . . . . . . . . . . . . . . . . . . . . . . . . . Cannon . | . . . . . . . . . . . . . . . . . . . . . . . . . . . . . . . . . . . . . . . . . . Launcher . | . . . . . . . . . . . . . . . . . . . . . . . . . . . . . . . . . . . . . . . . . . Special . | . . . . . . . . . . . . . . . . . . . . . . . . . . . . . . . . . . . . . . . . . . Kinetic . | . . . . . . . . . . . . . . . . . . . . . . . . . . . . . . . . . . . . . . . . . . Thermal 654 | 24 214 48 292 74 2 . . . . . . . . . . . . . . . . . . . . . . . . . . . . . . . . . . . . Explosive . | . . . . . . . . . . . . . . . . . . . . . . . . . . . . . . . . . . . . . . . . . . Electromagnetic 114 | . . . . . . 114 . . . . . . . . . . . . . . . . . . . . . . . . . . . . . . . . . . . Robot Hit Streak 27 | 6 17 9 27 9 . 15 . . . . . . . . . . . . . . . . . . . . . . . . . . . . . . . . . . . Robot Miss Streak 8 | 2 3 2 5 3 . 8 . . . . . . . . . . . . . . . . . . . . . . . . . . . . . . . . . . . Penetration Max . | . . . . . . . . . . . . . . . . . . . . . . . . . . . . . . . . . . . . . . . . . . Secondary Targets 5 | . 2 . 2 1 . . . . . . . . . . . . . . . . . . . . . . . . . . . . . . . . . . . . . Max Gunslinging Chain 1 | . 1 . 1 1 . . . . . . . . . . . . . . . . . . . . . . . . . . . . . . . . . . . . . Shots Hit Robots 5451 | 14 167 31 233 52 . 82 125 69 207 52 . 379 17 10 . 61 181 61 35 4 55 46 207 130 31 4 376 31 . 246 40 75 4 22 152 122 60 86 660 529 795 Core Hits 2134 | 7 63 13 89 22 . 34 56 30 83 22 . 162 7 6 . 25 65 25 14 . 19 29 89 50 13 2 143 14 . 84 19 27 . 12 60 49 22 25 233 223 298 Critical Kills 264 | . . . . . . . 6 1 5 1 . 15 1 2 . 7 5 2 1 . . 2 10 8 1 . 21 1 . 7 1 5 . 2 7 7 3 1 30 43 69 Critical Parts Destroyed 385 | . . . . . . . 2 7 14 1 . 27 2 2 . 4 10 5 1 . 1 1 13 11 1 . 33 2 . 14 2 7 . . 9 14 3 12 48 32 107 Critical Strikes 1170 | 2 17 4 19 4 . . 26 11 38 10 . 82 3 4 . 17 30 9 8 . 5 8 42 35 4 . 76 7 . 58 7 19 . 5 34 35 14 19 148 136 234 Burn 46 | 2 17 4 19 4 . . . . . . . . . . . . . . . . . . . . . . . . . . . . . . . . . . . . . Destroy 708 | . . . . . . . 8 8 19 4 . 42 3 4 . 11 15 7 2 . 2 3 24 21 2 . 58 3 . 24 3 13 . 2 17 24 7 13 94 84 191 Smash 7 | . . . . . . . . . . . . . . . . . . . . . . . . . . . . . . . . . . . . . . . . . 7 Sever 339 | . . . . . . . 18 3 19 6 . 40 . . . 6 15 2 6 . 3 5 18 14 2 . 18 4 . 34 4 6 . 3 17 6 4 4 26 35 21 Intensify 70 | . . . . . . . . . . . . . . . . . . . . . . . . . . . . . . . . . . . . 5 3 2 28 17 15 Melee Attacks 6294 | . . . . . . 6 160 168 272 83 . 498 23 12 5 70 235 83 41 9 61 58 261 148 33 4 438 35 . 296 49 95 4 35 185 168 76 119 880 647 1037 Impact 105 | . . . . . . . . . . . . . . . . . . . . . . . . . . . . . . . . . . . . . . . . . 105 Slashing 6188 | . . . . . . 6 160 168 272 83 . 498 23 12 5 70 235 83 41 9 61 58 261 148 33 4 438 35 . 296 49 95 4 35 185 167 76 119 880 647 932 Piercing . | . . . . . . . . . . . . . . . . . . . . . . . . . . . . . . . . . . . . . . . . . . Sneak Attacks 206 | . . . . . . 1 8 5 11 4 . 9 . . . . 9 12 . 1 . . 7 6 . 1 2 2 . 9 10 4 . 1 4 10 4 9 50 16 11 Combat Hostiles 86 | . . . . . . . 7 1 11 4 . 7 . . . . 5 . . . . . 1 2 . 1 2 2 . 4 . 1 . 1 3 1 4 3 8 14 4 Follow-up Attacks 1528 | . . . . . . . 34 20 50 7 . 104 3 3 . 20 43 17 11 1 12 8 42 23 9 . 95 9 . 76 8 19 . 5 49 46 25 44 298 160 287 Martial Strikes 476 | . . . . . . . . . . . . . . . . . . . . . . . . . . . . . . . . . . . . . . . 159 158 159 Damage Inflicted 443091 | 175 2152 415 3512 775 . 726 6885 4107 12929 3173 . 22623 1171 716 . 3888 11654 4096 2042 387 4139 3554 15159 10404 2339 362 30151 2073 . 16575 3932 7014 553 2103 13811 11791 5773 9797 72612 56630 92893 Guns 7427 | 175 2148 415 3512 775 . 402 . . . . . . . . . . . . . . . . . . . . . . . . . . . . . . . . . . . Cannons . | . . . . . . . . . . . . . . . . . . . . . . . . . . . . . . . . . . . . . . . . . . Explosions 81 | . . . . . . 81 . . . . . . . . . . . . . . . . . . . . . . . . . . . . . . . . . . . Melee 435579 | . . . . . . 243 6885 4107 12929 3173 . 22623 1171 716 . 3888 11654 4096 2042 387 4139 3554 15159 10404 2339 362 30151 2073 . 16575 3932 7014 553 2103 13811 11791 5773 9797 72612 56630 92893 Ramming 4 | . 4 . . . . . . . . . . . . . . . . . . . . . . . . . . . . . . . . . . . . . . . . Kinetic . | . . . . . . . . . . . . . . . . . . . . . . . . . . . . . . . . . . . . . . . . . . Thermal 7106 | 175 2148 415 3512 775 . 81 . . . . . . . . . . . . . . . . . . . . . . . . . . . . . . . . . . . Explosive . | . . . . . . . . . . . . . . . . . . . . . . . . . . . . . . . . . . . . . . . . . . Electromagnetic 402 | . . . . . . 402 . . . . . . . . . . . . . . . . . . . . . . . . . . . . . . . . . . . Impact 3531 | . . . . . . . . . . . . . . . . . . . . . . . . . . . . . . . . . . . . . . . . . 3531 Slashing 432048 | . . . . . . 243 6885 4107 12929 3173 . 22623 1171 716 . 3888 11654 4096 2042 387 4139 3554 15159 10404 2339 362 30151 2073 . 16575 3932 7014 553 2103 13811 11791 5773 9797 72612 56630 89362 Piercing . | . . . . . . . . . . . . . . . . . . . . . . . . . . . . . . . . . . . . . . . . . . Highest Corruption 24 | . . . . . . 12 . . . 3 7 7 . . . . 3 . . . . . 4 . . . 4 . . 4 4 4 4 4 2 2 . . 24 1 9 Average Corruption 5 | . . . . . . 11 . . . 1 2 5 . . . . 2 . . . . . 2 . . . 3 . . 2 4 4 4 4 1 2 . . 15 1 4 Corruption Purged 50 | . . . . . . . . . . 6 . 13 . . . . 5 . . . . . 5 . . . 7 . . . . . . . . . . . . . 14 Corruption Blocked . | . . . . . . . . . . . . . . . . . . . . . . . . . . . . . . . . . . . . . . . . . . Effects 239 | . . . . . . 10 . . . 7 . 30 . . . . 14 . . . . . 2 . . . 6 . . 7 6 8 1 4 1 4 . . 94 9 36 Message Errors 55 | . . . . . . . . . . 2 . 7 . . . . 6 . . . . . . . . . 3 . . 2 1 2 1 . . . . . 21 . 10 Matter Fused 45 | . . . . . . 2 . . . 2 . 9 . . . . 1 . . . . . 2 . . . . . . . 1 2 . 1 . . . . 14 3 8 Heat Flow Errors 34 | . . . . . . 3 . . . . . 3 . . . . 1 . . . . . . . . . 2 . . 3 1 . . 1 . 2 . . 10 3 5 Energy Discharges 28 | . . . . . . 1 . . . 1 . 5 . . . . 3 . . . . . . . . . . . . . . 2 . . . . . . 13 . 3 Parts Rejected 2 | . . . . . . . . . . . . . . . . . . . . . . . . . . . . . . . . 1 . 1 . . . . . . . Parts Fused 4 | . . . . . . . . . . . . . . . . . 1 . . . . . . . . . . . . . 1 . . . . . . . 2 . . Data Loss (minor) 32 | . . . . . . 1 . . . 2 . 2 . . . . 1 . . . . . . . . . . . . 1 2 1 . 1 1 1 . . 11 2 6 Data Loss (major) 14 | . . . . . . 3 . . . . . 1 . . . . 1 . . . . . . . . . 1 . . 1 . . . . . . . . 4 1 2 Alerts 9 | . . . . . . . . . . . . 3 . . . . . . . . . . . . . . . . . . . . . . . 1 . . 3 . 2 Misdirections 16 | . . . . . . . . . . . . . . . . . . . . . . . . . . . . . . . . . . . . . . . 16 . . Overload Shots . | . . . . . . . . . . . . . . . . . . . . . . . . . . . . . . . . . . . . . . . . . . Overflow Damage 52234 | . . . . . . 65 476 374 880 192 . 1357 152 148 . 207 1078 392 101 191 468 70 1373 930 54 . 2730 37 . 1108 565 1006 277 215 1262 2618 924 2414 11660 6893 12017 Projectiles . | . . . . . . . . . . . . . . . . . . . . . . . . . . . . . . . . . . . . . . . . . . Explosions . | . . . . . . . . . . . . . . . . . . . . . . . . . . . . . . . . . . . . . . . . . . Melee 52234 | . . . . . . 65 476 374 880 192 . 1357 152 148 . 207 1078 392 101 191 468 70 1373 930 54 . 2730 37 . 1108 565 1006 277 215 1262 2618 924 2414 11660 6893 12017 Knockbacks 7 | . . . . . . . . . . . . . . . . . . . . . . . . . . . . . . . . . . . . . . . . . 7 Impact 6 | . . . . . . . . . . . . . . . . . . . . . . . . . . . . . . . . . . . . . . . . . 6 Kinetic . | . . . . . . . . . . . . . . . . . . . . . . . . . . . . . . . . . . . . . . . . . . Secondary 1 | . . . . . . . . . . . . . . . . . . . . . . . . . . . . . . . . . . . . . . . . . 1 Self-Inflicted Damage 2 | . 2 . . . . . . . . . . . . . . . . . . . . . . . . . . . . . . . . . . . . . . . . Shots . | . . . . . . . . . . . . . . . . . . . . . . . . . . . . . . . . . . . . . . . . . . Rammed 2 | . 2 . . . . . . . . . . . . . . . . . . . . . . . . . . . . . . . . . . . . . . . . Targets Rammed 2 | . 2 . . . . . . . . . . . . . . . . . . . . . . . . . . . . . . . . . . . . . . . . Kicked . | . . . . . . . . . . . . . . . . . . . . . . . . . . . . . . . . . . . . . . . . . . Crushed . | . . . . . . . . . . . . . . . . . . . . . . . . . . . . . . . . . . . . . . . . . . Highest Temperature 359 | . 26 22 27 93 . 190 4 . . . . 211 . . . . 108 . . . . 2 239 18 1 . 118 9 62 359 114 8 . 92 . 170 . . 187 203 196 Average Temperature 46 | . 17 10 7 33 . 33 4 . . . . 87 . . . . 38 . . . . 2 69 8 1 . 38 2 47 64 41 3 . 59 . 87 . . 76 121 87 Received Heat Transfer 7488 | . 513 129 525 162 . 90 423 357 747 135 . 336 27 6 . 126 402 84 18 . 159 12 315 157 54 . 639 69 . 317 69 78 . 12 234 72 36 9 533 195 448 Siege Activations . | . . . . . . . . . . . . . . . . . . . . . . . . . . . . . . . . . . . . . . . . . . Martial Activations . | . . . . . . . . . . . . . . . . . . . . . . . . . . . . . . . . . . . . . . . . . . Shielding Activations . | . . . . . . . . . . . . . . . . . . . . . . . . . . . . . . . . . . . . . . . . . . Robots Disrupted . | . . . . . . . . . . . . . . . . . . . . . . . . . . . . . . . . . . . . . . . . . . Combat Hostiles . | . . . . . . . . . . . . . . . . . . . . . . . . . . . . . . . . . . . . . . . . . . Robots Corrupted 3 | . . . . . . 2 . . . . . . . . . . . . . . . . . . . . . . . . . . . . . . . . . . 1 Combat Hostiles 3 | . . . . . . 2 . . . . . . . . . . . . . . . . . . . . . . . . . . . . . . . . . . 1 Parts Fried 9 | . . . . . . 7 . . . . . . . . . . . . . . . . . . . . . . . . . . . . . . . . . . 2 Impact Corruptions 19 | . . . . . . . . . . . . . . . . . . . . . . . . . . . . . . . . . . . . . . . . . 19 Robots Melted 3 | . 1 . 2 . . . . . . . . . . . . . . . . . . . . . . . . . . . . . . . . . . . . . . Combat Hostiles 3 | . 1 . 2 . . . . . . . . . . . . . . . . . . . . . . . . . . . . . . . . . . . . . . Parts Melted 96 | 1 24 . 34 8 . . . . . . . . . . . . . . 1 . 1 . . . . . 1 . . . . . . . . . . . . 22 4 Heat Transferred 21796 | 666 7437 1517 9907 2257 . 12 . . . . . . . . . . . . . . . . . . . . . . . . . . . . . . . . . . . Parts Sabotaged 17 | . . . . . . . . . . . . . . . . . . . . . . . . . . . 4 . . . . . . . . . . . 8 . 5 Parts Stolen . | . . . . . . . . . . . . . . . . . . . . . . . . . . . . . . . . . . . . . . . . . . Parts Stripped . | . . . . . . . . . . . . . . . . . . . . . . . . . . . . . . . . . . . . . . . . . . Power Chain Reactions 1 | . . . . . . 1 . . . . . . . . . . . . . . . . . . . . . . . . . . . . . . . . . . . Alert | -11 -10 -10 -9 -9 -9 -8 -8 -8 -8 -7 -7 -7 -7 -7 -7 -6 -6 -6 -6 -6 -6 -5 -5 -5 -5 -5 -5 -4 -4 -4 -4 -4 -4 -3 -3 -3 -2 -2 -2 -1 -1 ------- Run | Yrd Mat Min Mat Min Exi Min Mat Gar Mat Fac Was Fac Low Low Dat Pro Fac Low Low Zio Dee Pro Fac Ext Cet Arc Hub Fac Was Fac Upp Upp Zhi Pro Res Tes Res Qua Frg Acc Com Maximum Alert Level 5 | . 2 1 4 3 . . 4 5 5 5 4 5 . . . . 4 . . . . . 4 5 3 2 5 5 4 5 . . . . 4 4 4 4 5 5 5 Low Security (%) 12 | 100 58 92 31 . . 100 23 . . . . . . . . . 7 . . . . . 38 . . . 1 . . . . . . . 6 . . . . . . Level 1 6 | . 9 7 5 . . . 19 . . . . . . . . . 26 . . . . . 12 11 . 47 3 . . . . . . . 24 . . . . . . Level 2 8 | . 31 . 16 81 . . 26 . . . . . . . . . 10 . . . . . 8 8 . 52 3 . . . . . . . 44 . . . . . . Level 3 16 | . . . 39 18 . . 17 15 3 . . 7 . . . . 42 . . . . . 20 41 100 . 4 . 52 12 . . . . 19 75 56 54 11 . . Level 4 19 | . . . 6 . . . 13 29 36 33 100 60 . . . . 12 . . . . . 20 24 . . 3 . 47 62 . . . . 4 25 43 45 5 . . Level 5 17 | . . . . . . . . 54 1 66 . 6 . . . . . . . . . . . 13 . . 12 89 . 25 . . . . . . . . 82 5 26 High Security 19 | . . . . . . . . . 58 . . 25 . . . . . . . . . . . . . . 70 10 . . . . . . . . . . . 94 73 Max Security . | . . . . . . . . . . . . . . . . . . . . . . . . . . . . . . . . . . . . . . . . . . Sterilizations 6 | . . . 1 . . . 1 . 1 . . 1 . . . . . . . . . . . . . . 1 . . . . . . . . . . . . 1 . Peak Influence 11786 | 20 547 211 1119 744 . 80 1293 2136 3395 1859 1100 3278 . . . . 1208 . . . . . 1490 1692 1062 569 5341 2876 1100 1780 . . . . 1273 1395 1518 1495 5738 9124 11786 Initial 5839 | . 6 211 . 420 . . 7 828 1041 1544 1100 763 . . . . 164 . . . . . 7 722 924 394 98 2616 1100 756 . . . . 141 715 784 842 829 3439 5839 Average 2115 | 3 234 92 576 558 . 21 539 1550 2022 1649 1099 1603 . . . . 672 . . . . . 559 1062 1020 417 3446 2709 1093 1399 . . . . 556 951 1120 1131 3123 6203 9670 Influence Increases 53096 | 30 1012 . 1605 504 . 167 1718 1308 2594 1155 . 3487 225 170 . 580 1660 455 320 . . 390 2078 2020 263 175 5663 340 . 1478 330 595 10 295 1434 1052 814 803 5573 5715 7078 Destroy 0b10 Robot/C 35560 | . 620 . 1080 320 . 120 1120 640 1600 440 . 2560 160 160 . 480 1040 400 280 . . 340 1460 1020 160 80 2940 200 . 1000 280 520 . 240 1040 680 460 640 4220 4200 5060 Destroy 0b10 Robot/NC 825 | 30 20 . 5 5 . 5 10 . 35 . . 90 . . . . 40 . . . . 30 65 20 10 . 40 . . 25 10 5 10 10 15 30 10 15 75 70 145 Destroy Leader 5520 | . 134 . 260 40 . 20 250 30 280 120 . 514 20 10 . 50 268 40 40 . . 20 304 116 . . 474 50 . 218 10 40 . 30 190 66 82 72 498 620 654 Allied During Kill 2451 | . . . . 19 . . . 2 . . . . . . . 50 41 . . . . . . 704 87 80 1251 . . . . . . . . 65 133 19 . . . Trap Triggered on 0b10 10 | . 10 . . . . . . . . . . . . . . . . . . . . . . . . . . . . . . . . . . . . . . . . Successful Hack 420 | . 6 . 26 . . . 6 . 18 90 . 35 . . . . 64 . . . . . 39 4 . . . . . 38 . . . . 16 25 . . 27 . 26 Select Force Hacks 570 | . 160 . 140 . . . 90 . 30 . . . . . . . . . . . . . . . . . 150 . . . . . . . . . . . . . . Disable Machine 600 | . . . . . . 15 . 60 . 15 . . . . . . . . . . . . . 30 . 15 75 . . . . . . . . 105 45 15 120 30 75 Anti-Garrison Action 650 | . . . . . . . . 350 . . . . . . . . . . . . . . . . . . . . . . . . . . . . . . . 300 . Destroy Structure 400 | . 2 . 4 . . 7 2 91 1 10 . 3 . . . . 12 . . . . . 30 6 6 . 88 . . 2 . . . . 8 6 9 27 3 15 68 Partial Spotted 1335 | . . . 30 15 . . 45 . 90 60 . 105 . . . . 105 . . . . . 75 . . . 45 45 . 120 . . . . 105 30 60 15 105 90 195 Lose Combat Pursuer 4755 | . 60 . 60 105 . . 195 135 540 420 . 180 45 . . . 90 15 . . . . 105 120 . . 600 45 . 75 30 30 . 15 60 45 15 . 525 390 855 Influence Decreases 40743 | 20 479 543 526 865 718 146 464 447 1335 2691 1219 1299 1374 515 1784 318 729 664 328 976 . 378 615 1845 926 879 605 2805 1890 798 812 413 1470 85 371 930 711 826 1316 2323 3305 Entered New Map 29417 | . 4 332 . 659 718 . 14 447 1095 1851 1209 327 1214 405 1784 . 98 442 188 976 . . 5 753 726 593 185 2725 1870 324 652 243 1460 . 69 558 611 656 646 2293 3285 Time Decay 9536 | 20 465 211 516 206 . 146 440 . 230 510 10 652 160 110 . 318 571 222 140 . . 378 580 452 180 286 140 80 20 474 160 170 10 85 302 342 100 170 650 30 . Lost Part 140 | . 10 . 10 . . . 10 . 10 20 . . . . . . 20 . . . . . . . . . 20 . . . . . . . . . . . 20 . 20 Lost Ally 600 | . . . . . . . . . . 10 . 20 . . . . 40 . . . . . 30 190 20 . 260 . . . . . . . . 30 . . . . . Purge Threat 1050 | . . . . . . . . . . 300 . 300 . . . . . . . . . . . 450 . . . . . . . . . . . . . . . . . Squads Dispatched 338 | . 10 . 10 . . . 12 . 19 16 . 40 . . . . 15 . . . . . 13 5 . . 38 2 . 12 . . . . 9 4 3 10 35 44 41 Investigation 63 | . 10 . 6 . . . 7 . 1 8 . 2 . . . . 3 . . . . . 3 3 . . 10 . . 1 . . . . 5 . . 1 1 . 2 Extermination 36 | . . . . . . . . . . 4 . 7 . . . . 5 . . . . . 4 . . . 1 . . 2 . . . . . 1 1 2 8 1 . Reinforcement 57 | . . . 3 . . . 4 . 2 2 . 3 . . . . 7 . . . . . 3 . . . 7 2 . 5 . . . . 4 1 1 3 4 3 3 Assault 167 | . . . 1 . . . 1 . 16 2 . 28 . . . . . . . . . . 3 2 . . 14 . . 3 . . . . . 2 . 2 21 36 36 Garrison 15 | . . . . . . . . . . . . . . . . . . . . . . . . . . . 6 . . 1 . . . . . . 1 2 1 4 . Intercept . | . . . . . . . . . . . . . . . . . . . . . . . . . . . . . . . . . . . . . . . . . . Searches Triggered . | . . . . . . . . . . . . . . . . . . . . . . . . . . . . . . . . . . . . . . . . . . Unchained Authorized 6 | . . . . . . . . . . . . . . . . . 1 . . . . . 1 . . . . . . 3 . . . . . 1 . . . . . Data Miner Redirects 3 | . . . . . . . . . . . . . . . . . . . . . . . . . . . . . . . . . . . . . . . 3 . . Construction Impeded 3 | . . . . . . . . . . . . . . . . . . . . . . . . . . . 2 . . . . . . . . . . 1 . . . Haulers Reinforced 5 | . . . . . . . . . . . . 1 . . . . 2 . . . . . . . . . . . . . . . . . 2 . . . . . . Active Scanning Responses . | . . . . . . . . . . . . . . . . . . . . . . . . . . . . . . . . . . . . . . . . . . Cargo Convoy Interrupts 3 | . . . . . . . . . . . . 1 . . . . . . . . . . 1 . . . . . . 1 . . . . . . . . . . . Stealth | -11 -10 -10 -9 -9 -9 -8 -8 -8 -8 -7 -7 -7 -7 -7 -7 -6 -6 -6 -6 -6 -6 -5 -5 -5 -5 -5 -5 -4 -4 -4 -4 -4 -4 -3 -3 -3 -2 -2 -2 -1 -1 --------- Run | Yrd Mat Min Mat Min Exi Min Mat Gar Mat Fac Was Fac Low Low Dat Pro Fac Low Low Zio Dee Pro Fac Ext Cet Arc Hub Fac Was Fac Upp Upp Zhi Pro Res Tes Res Qua Frg Acc Com Distress Signals 80 | . 4 1 4 . . . 1 . . . . 1 . . . . 3 . . . . 3 . 1 2 . 8 . . 8 . . . . 3 1 1 1 3 8 27 Communications Jammed 148 | . . . . . . . 34 . 66 30 . 14 . . . . . . . . . . . . . . . . . . . . . . . . . . . . 4 Distress Signals 147 | . . . . . . . 34 . 66 29 . 14 . . . . . . . . . . . . . . . . . . . . . . . . . . . . 4 Times Spotted 2606 | . 51 26 74 21 3 9 78 36 133 66 3 195 11 9 . 24 110 19 14 7 14 29 116 60 10 3 214 15 6 90 13 25 . 13 63 46 25 27 268 286 394 Peak Tracking Total 24 | . 6 20 10 5 9 4 8 8 18 9 3 14 4 4 . 7 12 4 5 6 5 4 10 9 5 3 24 6 6 10 7 7 . 4 8 6 5 5 19 15 21 Tactical Retreats 187 | . 3 1 4 3 . 2 3 5 13 15 . 8 3 . . . 20 1 . . . . 7 5 . . 18 2 . 5 1 1 . 1 1 3 1 . 15 14 32 Traps | -11 -10 -10 -9 -9 -9 -8 -8 -8 -8 -7 -7 -7 -7 -7 -7 -6 -6 -6 -6 -6 -6 -5 -5 -5 -5 -5 -5 -4 -4 -4 -4 -4 -4 -3 -3 -3 -2 -2 -2 -1 -1 ------- Run | Yrd Mat Min Mat Min Exi Min Mat Gar Mat Fac Was Fac Low Low Dat Pro Fac Low Low Zio Dee Pro Fac Ext Cet Arc Hub Fac Was Fac Upp Upp Zhi Pro Res Tes Res Qua Frg Acc Com Traps Triggered 66 | . 1 . 1 . . . 1 10 1 2 . . . . . . 8 . . . . 2 . 5 . . . 2 . . . . . . 5 . . 3 18 1 6 Indirectly . | . . . . . . . . . . . . . . . . . . . . . . . . . . . . . . . . . . . . . . . . . . Trap Hack Attempts 10 | . 3 . 7 . . . . . . . . . . . . . . . . . . . . . . . . . . . . . . . . . . . . . . Triggered . | . . . . . . . . . . . . . . . . . . . . . . . . . . . . . . . . . . . . . . . . . . Disarmed . | . . . . . . . . . . . . . . . . . . . . . . . . . . . . . . . . . . . . . . . . . . Reprogrammed 2 | . 1 . 1 . . . . . . . . . . . . . . . . . . . . . . . . . . . . . . . . . . . . . . Reused 1 | . 1 . . . . . . . . . . . . . . . . . . . . . . . . . . . . . . . . . . . . . . . . Traps Extracted 1 | . . . 1 . . . . . . . . . . . . . . . . . . . . . . . . . . . . . . . . . . . . . . Installed 1 | . . . . . . 1 . . . . . . . . . . . . . . . . . . . . . . . . . . . . . . . . . . . Triggered 1 | . 1 . . . . . . . . . . . . . . . . . . . . . . . . . . . . . . . . . . . . . . . . Most Traps Carried 1 | . . . 1 1 1 1 . . . . . . . . . . . . . . . . . . . . . . . . . . . . . . . . . . . Machines | -11 -10 -10 -9 -9 -9 -8 -8 -8 -8 -7 -7 -7 -7 -7 -7 -6 -6 -6 -6 -6 -6 -5 -5 -5 -5 -5 -5 -4 -4 -4 -4 -4 -4 -3 -3 -3 -2 -2 -2 -1 -1 ---------- Run | Yrd Mat Min Mat Min Exi Min Mat Gar Mat Fac Was Fac Low Low Dat Pro Fac Low Low Zio Dee Pro Fac Ext Cet Arc Hub Fac Was Fac Upp Upp Zhi Pro Res Tes Res Qua Frg Acc Com Machines Disabled 58 | . . . . . 1 1 . 9 . 1 . . . . . . . 1 . 3 . 2 . 3 . 1 5 . . . . 2 . . . 7 3 1 8 5 5 Max in Single Turn 1 | . . . . . 1 1 . 1 . 1 . . . . . . . 1 . 1 . 1 . 1 . . 1 . . . . 1 . . . 1 1 1 1 1 1 Garrison Access 13 | . . . . . . . . . . . . . . . . . 1 . . . . . 4 . . . 1 . . 1 . . . . 1 1 1 . 1 2 . Garrison Relay 5 | . . . . . . . . 5 . . . . . . . . . . . . . . . . . . . . . . . . . . . . . . . . . Network Hub 3 | . . . . . . . . . . . . . . . . . . . . . . . . . . . 3 . . . . . . . . . . . . . . Machines Repaired . | . . . . . . . . . . . . . . . . . . . . . . . . . . . . . . . . . . . . . . . . . . Machines Dismantled . | . . . . . . . . . . . . . . . . . . . . . . . . . . . . . . . . . . . . . . . . . . Machines Sabotaged 6 | . 2 . 1 . . . . . . . . . . . . . . . . . . . . . . . 3 . . . . . . . . . . . . . . Overloaded Fab Kills . | . . . . . . . . . . . . . . . . . . . . . . . . . . . . . . . . . . . . . . . . . . Hacking | -11 -10 -10 -9 -9 -9 -8 -8 -8 -8 -7 -7 -7 -7 -7 -7 -6 -6 -6 -6 -6 -6 -5 -5 -5 -5 -5 -5 -4 -4 -4 -4 -4 -4 -3 -3 -3 -2 -2 -2 -1 -1 --------- Run | Yrd Mat Min Mat Min Exi Min Mat Gar Mat Fac Was Fac Low Low Dat Pro Fac Low Low Zio Dee Pro Fac Ext Cet Arc Hub Fac Was Fac Upp Upp Zhi Pro Res Tes Res Qua Frg Acc Com Machines Accessed 150 | . 11 . 9 . 1 . 10 3 9 24 . 9 . 1 4 . 8 1 1 1 . . 16 6 . . 9 . . 7 2 2 . . 6 3 1 1 3 . 2 Terminals 100 | . 8 . 5 . . . 6 3 8 18 . 7 . . . . 4 1 . . . . 12 6 . . 9 . . 4 . 1 . . 4 2 . . . . 2 Fabricators 10 | . . . . . . . . . . 2 . 1 . . . . 2 . . . . . 1 . . . . . . 1 . . . . 1 . . . 2 . . Repair Stations 3 | . 1 . 1 . . . . . . . . . . . . . . . . . . . . . . . . . . 1 . . . . . . . . . . . Recycling Units 6 | . 2 . 2 . . . 2 . . . . . . . . . . . . . . . . . . . . . . . . . . . . . . . . . . Scanalyzers 7 | . . . 1 . . . 1 . 1 3 . . . . . . 1 . . . . . . . . . . . . . . . . . . . . . . . . Garrison Access 13 | . . . . . . . 1 . . 1 . 1 . . . . 1 . . . . . 3 . . . . . . 1 . . . . 1 1 1 1 1 . . Total Hacks 392 | . 23 . 12 . 1 . 21 8 15 64 . 19 . 1 26 . 19 4 1 5 . . 37 24 . . 25 . . 15 6 8 . . 20 9 1 3 11 . 14 Successful 199 | . 11 . 10 . 1 . 16 1 8 21 . 9 . 1 26 . 10 4 1 5 . . 14 15 . . 6 . . 11 6 8 . . 2 4 1 . 4 . 4 Failed 193 | . 12 . 2 . . . 5 7 7 43 . 10 . . . . 9 . . . . . 23 9 . . 19 . . 4 . . . . 18 5 . 3 7 . 10 Catastrophic 37 | . . . . . . . . 3 1 10 . 1 . . . . 3 . . . . . 2 1 . . 3 . . 1 . . . . 5 2 . 1 2 . 2 Database Lockouts . | . . . . . . . . . . . . . . . . . . . . . . . . . . . . . . . . . . . . . . . . . . Manual 196 | . 20 . 12 . 1 . 18 . 15 28 . 9 . . . . 9 . . . . . 23 10 2 . 25 . . 10 . . . . 10 4 . . . . . Terminals 269 | . 19 . 7 . . . 13 8 14 46 . 15 . . . . 9 4 . . . . 31 24 . . 25 . . 12 . 7 . . 13 8 . . . . 14 Fabricators 31 | . . . . . . . . . . 8 . 1 . . . . 6 . . . . . 2 . . . . . . 1 . . . . 5 . . . 8 . . Repair Stations 4 | . 2 . 1 . . . . . . . . . . . . . . . . . . . . . . . . . . 1 . . . . . . . . . . . Recycling Units 10 | . 2 . 2 . . . 6 . . . . . . . . . . . . . . . . . . . . . . . . . . . . . . . . . . Scanalyzers 13 | . . . 2 . . . 1 . 1 7 . . . . . . 2 . . . . . . . . . . . . . . . . . . . . . . . . Garrison Access 24 | . . . . . . . 1 . . 3 . 3 . . . . 2 . . . . . 4 . . . . . . 1 . . . . 2 1 1 3 3 . . Terminal Hacks 95 | . 2 . 1 . 1 . 2 1 . 8 . 5 . 1 26 . 1 4 1 5 . . 3 9 . . . . . 5 6 8 . . 1 1 . . . . 4 Record 27 | . . . . . . . . . . . . . . . 11 . . 4 . . . . . . . . . . . . 5 7 . . . . . . . . . Part Schematic 13 | . . . . . . . . . . . . . . . 8 . . . . 5 . . . . . . . . . . . . . . . . . . . . . Robot Schematic 4 | . . . . . . . . . . . . . . . 4 . . . . . . . . . . . . . . . . . . . . . . . . . . Robot Analysis 4 | . 2 . . . . . 1 . . . . . . . . . . . . . . . . 1 . . . . . . . . . . . . . . . . . Prototype ID Bank 3 | . . . . . . . . . . . . . . . 3 . . . . . . . . . . . . . . . . . . . . . . . . . . Open Door 5 | . . . . . . . . 1 . . . . . 1 . . . . 1 . . . . . . . . . . . 1 1 . . . . . . . . . Branch Access Points 3 | . . . . . . . . . . 1 . . . . . . . . . . . . . . . . . . . 1 . . . . 1 . . . . . . Emergency Access Points 1 | . . . . . . . . . . . . 1 . . . . . . . . . . . . . . . . . . . . . . . . . . . . . Terminal Index 4 | . . . . . . . . . . 1 . . . . . . . . . . . . . 1 . . . . . 1 . . . . . . . . . . 1 Fabricator Index 1 | . . . . . . . . . . 1 . . . . . . . . . . . . . . . . . . . . . . . . . . . . . . . Scanalyzer Index 1 | . . . . . . . . . . 1 . . . . . . . . . . . . . . . . . . . . . . . . . . . . . . . Garrison Index 1 | . . . . . . . . . . . . . . . . . . . . . . . 1 . . . . . . . . . . . . . . . . . . Alert Level 10 | . . . . . . . . . . 1 . 2 . . . . 1 . . . . . . 2 . . . . . 1 . . . . . 1 . . . . 2 Unreport Threat 7 | . . . . . . . . . . 2 . 2 . . . . . . . . . . . 3 . . . . . . . . . . . . . . . . . Locate Traps 6 | . . . 1 . . . 1 . . . . . . . . . . . . . . . . 2 . . . . . 1 . . . . . . . . . . 1 Dispatch Records 1 | . . . . . . . . . . . . . . . . . . . . . . . 1 . . . . . . . . . . . . . . . . . . Recall Extermination 1 | . . . . . . . . . . . . . . . . . . . . . . . 1 . . . . . . . . . . . . . . . . . . Hauler Manifests 1 | . . . . . . . . . . . . . . . . . . . . . . . . . . . . . . 1 . . . . . . . . . . . Zone Layout 1 | . . . . . . . . . . 1 . . . . . . . . . . . . . . . . . . . . . . . . . . . . . . . Proto ID Catalog 1 | . . . . . 1 . . . . . . . . . . . . . . . . . . . . . . . . . . . . . . . . . . . . Fabricator Hacks 8 | . . . . . . . . . . 3 . . . . . . 2 . . . . . . . . . . . . . . . . . . . . . 3 . . Load Schematic 5 | . . . . . . . . . . 2 . . . . . . 1 . . . . . . . . . . . . . . . . . . . . . 2 . . Build 3 | . . . . . . . . . . 1 . . . . . . 1 . . . . . . . . . . . . . . . . . . . . . 1 . . Repair Station Hacks . | . . . . . . . . . . . . . . . . . . . . . . . . . . . . . . . . . . . . . . . . . . Recycling Unit Hacks . | . . . . . . . . . . . . . . . . . . . . . . . . . . . . . . . . . . . . . . . . . . Scanalyzer 5 | . . . . . . . . . . 3 . . . . . . 2 . . . . . . . . . . . . . . . . . . . . . . . . Insert Component 3 | . . . . . . . . . . 2 . . . . . . 1 . . . . . . . . . . . . . . . . . . . . . . . . Analyze 2 | . . . . . . . . . . 1 . . . . . . 1 . . . . . . . . . . . . . . . . . . . . . . . . Garrison Access Hacks 10 | . . . . . . . 1 . . . . . . . . . 1 . . . . . 3 . . . . . . 1 . . . . 1 1 1 . 1 . . Unlock Access 1 | . . . . . . . 1 . . . . . . . . . . . . . . . . . . . . . . . . . . . . . . . . . . Seal Access 9 | . . . . . . . . . . . . . . . . . 1 . . . . . 3 . . . . . . 1 . . . . 1 1 1 . 1 . . Unauthorized Hacks 77 | . 9 . 9 . . . 9 . 8 7 . 4 . . . . 4 . . . . . 8 6 . . 6 . . 5 . . . . . 2 . . . . . Terminals 61 | . 6 . 5 . . . 6 . 7 7 . 3 . . . . 3 . . . . . 7 6 . . 6 . . 3 . . . . . 2 . . . . . Assimilate 10 | . . . . . . . . . . 1 . 2 . . . . 1 . . . . . 3 1 . . . . . 1 . . . . . 1 . . . . . Botnet 20 | . . . 1 . . . 1 . 2 6 . 1 . . . . 1 . . . . . 4 2 . . . . . 1 . . . . . 1 . . . . . Disrupt 5 | . . . . . . . . . 5 . . . . . . . . . . . . . . . . . . . . . . . . . . . . . . . . Operators 2 | . . . . . . . . . . . . . . . . . 1 . . . . . . . . . . . . 1 . . . . . . . . . . . Sabotage 22 | . 6 . 2 . . . 5 . . . . . . . . . . . . . . . . 3 . . 6 . . . . . . . . . . . . . . Search 2 | . . . 2 . . . . . . . . . . . . . . . . . . . . . . . . . . . . . . . . . . . . . . Fabricators 4 | . . . . . . . . . . . . 1 . . . . 1 . . . . . 1 . . . . . . 1 . . . . . . . . . . . Haulers 4 | . . . . . . . . . . . . 1 . . . . 1 . . . . . 1 . . . . . . 1 . . . . . . . . . . . Repair Stations 3 | . 1 . 1 . . . . . . . . . . . . . . . . . . . . . . . . . . 1 . . . . . . . . . . . Patch 3 | . 1 . 1 . . . . . . . . . . . . . . . . . . . . . . . . . . 1 . . . . . . . . . . . Recycling Units 6 | . 2 . 2 . . . 2 . . . . . . . . . . . . . . . . . . . . . . . . . . . . . . . . . . Tunnel 6 | . 2 . 2 . . . 2 . . . . . . . . . . . . . . . . . . . . . . . . . . . . . . . . . . Scanalyzers 3 | . . . 1 . . . 1 . 1 . . . . . . . . . . . . . . . . . . . . . . . . . . . . . . . . Extract 3 | . . . 1 . . . 1 . 1 . . . . . . . . . . . . . . . . . . . . . . . . . . . . . . . . Garrison Access . | . . . . . . . . . . . . . . . . . . . . . . . . . . . . . . . . . . . . . . . . . . Data Cores Recovered 9 | . . . . . . . 1 . . . . 1 . . . . 2 . . . . . 2 . . . . . . . . . . . 1 1 . 1 . . . Used 3 | . . . . . . . . . . . . . . . . . 1 . . . . . 2 . . . . . . . . . . . . . . . . . . Hacking Detections 89 | . 6 . 1 . . . 4 3 6 23 . 7 . . . . 7 1 . . . . 11 5 . . 4 . . . . . . . 4 2 . 1 3 . 1 Full Trace Events 27 | . 2 . 1 . . . . 2 1 8 . 2 . . . . 2 . . . . . 3 . . . 3 . . . . . . . 1 . . . 1 . 1 Feedback Events 2 | . . . . . . . . . . 1 . . . . . . 1 . . . . . . . . . . . . . . . . . . . . . . . . Corruption 2 | . . . . . . . . . . 1 . . . . . . 1 . . . . . . . . . . . . . . . . . . . . . . . . Feedback Blocked . | . . . . . . . . . . . . . . . . . . . . . . . . . . . . . . . . . . . . . . . . . . Robot Schematics Acquired 55 | . . . . . . . . . . . . . . . 4 . . . . 4 . . . . . . . . . 46 . . . . . 1 . . . . . Robots Built . | . . . . . . . . . . . . . . . . . . . . . . . . . . . . . . . . . . . . . . . . . . Authchips . | . . . . . . . . . . . . . . . . . . . . . . . . . . . . . . . . . . . . . . . . . . Time . | . . . . . . . . . . . . . . . . . . . . . . . . . . . . . . . . . . . . . . . . . . Total Robot Build Rating . | . . . . . . . . . . . . . . . . . . . . . . . . . . . . . . . . . . . . . . . . . . Part Schematics Acquired 70 | . . . 3 . . . 3 . 3 1 . . . . 8 . 1 . . 18 . . . . . . . . . . . . . . . 18 . 6 9 . . Parts Built 3 | . . . . . . . . . . 1 . . . . . . 1 . . . . . . . . . . . . . . . . . . . . . 1 . . Authchips . | . . . . . . . . . . . . . . . . . . . . . . . . . . . . . . . . . . . . . . . . . . Time 407 | . . . . . . . . . . 222 . . . . . . 111 . . . . . . . . . . . . . . . . . . . . . 74 . . Total Part Build Rating 27 | . . . . . . . . . . 9 . . . . . . 9 . . . . . . . . . . . . . . . . . . . . . 9 . . Part Studies Acquired . | . . . . . . . . . . . . . . . . . . . . . . . . . . . . . . . . . . . . . . . . . . Parts Repaired . | . . . . . . . . . . . . . . . . . . . . . . . . . . . . . . . . . . . . . . . . . . Time . | . . . . . . . . . . . . . . . . . . . . . . . . . . . . . . . . . . . . . . . . . . Parts Recycled . | . . . . . . . . . . . . . . . . . . . . . . . . . . . . . . . . . . . . . . . . . . Recycled Matter . | . . . . . . . . . . . . . . . . . . . . . . . . . . . . . . . . . . . . . . . . . . Retrieved Matter . | . . . . . . . . . . . . . . . . . . . . . . . . . . . . . . . . . . . . . . . . . . Retrieved Components . | . . . . . . . . . . . . . . . . . . . . . . . . . . . . . . . . . . . . . . . . . . Parts Scanalyzed 2 | . . . . . . . . . . 1 . . . . . . 1 . . . . . . . . . . . . . . . . . . . . . . . . Part Schematics Acquired 2 | . . . . . . . . . . 1 . . . . . . 1 . . . . . . . . . . . . . . . . . . . . . . . . Parts Damaged 1 | . . . . . . . . . . 1 . . . . . . . . . . . . . . . . . . . . . . . . . . . . . . . Bothacking | -11 -10 -10 -9 -9 -9 -8 -8 -8 -8 -7 -7 -7 -7 -7 -7 -6 -6 -6 -6 -6 -6 -5 -5 -5 -5 -5 -5 -4 -4 -4 -4 -4 -4 -3 -3 -3 -2 -2 -2 -1 -1 ------------ Run | Yrd Mat Min Mat Min Exi Min Mat Gar Mat Fac Was Fac Low Low Dat Pro Fac Low Low Zio Dee Pro Fac Ext Cet Arc Hub Fac Was Fac Upp Upp Zhi Pro Res Tes Res Qua Frg Acc Com Used RIF Installer . | . . . . . . . . . . . . . . . . . . . . . . . . . . . . . . . . . . . . . . . . . . Robots Hacked 1 | . . . . . . . . . . . . . . . . . . . . . . . . . . . . . . . . . . . . 1 . . . . . Non-combat . | . . . . . . . . . . . . . . . . . . . . . . . . . . . . . . . . . . . . . . . . . . Combat 1 | . . . . . . . . . . . . . . . . . . . . . . . . . . . . . . . . . . . . 1 . . . . . Robot Hacks Applied 1 | . . . . . . . . . . . . . . . . . . . . . . . . . . . . . . . . . . . . 1 . . . . . parse_system 1 | . . . . . . . . . . . . . . . . . . . . . . . . . . . . . . . . . . . . 1 . . . . . Relay Couplers Released 15 | . . . . . . . . 12 . . . . . . . . . . . . . . 1 . . . 1 . . . . . . . . . . . . 1 . Machine Destruction 13 | . . . . . . . . 10 . . . . . . . . . . . . . . 1 . . . 1 . . . . . . . . . . . . 1 . Programmers 2 | . . . . . . . . 2 . . . . . . . . . . . . . . . . . . . . . . . . . . . . . . . . . Fabnet Peak Effective % . | . . . . . . . . . . . . . . . . . . . . . . . . . . . . . . . . . . . . . . . . . . Robots Rewired 20 | . . . . . . . . 2 . . . . . . . 2 . . . . . . . 14 . . . . . . . . . . . 2 . . . . . Allies Hacked 1 | . . . . . . . . . . . . . . . . . . . . . . . 1 . . . . . . . . . . . . . . . . . . Hacks Repelled . | . . . . . . . . . . . . . . . . . . . . . . . . . . . . . . . . . . . . . . . . . . Allies | -11 -10 -10 -9 -9 -9 -8 -8 -8 -8 -7 -7 -7 -7 -7 -7 -6 -6 -6 -6 -6 -6 -5 -5 -5 -5 -5 -5 -4 -4 -4 -4 -4 -4 -3 -3 -3 -2 -2 -2 -1 -1 -------- Run | Yrd Mat Min Mat Min Exi Min Mat Gar Mat Fac Was Fac Low Low Dat Pro Fac Low Low Zio Dee Pro Fac Ext Cet Arc Hub Fac Was Fac Upp Upp Zhi Pro Res Tes Res Qua Frg Acc Com Total Allies 53 | . . 3 . 2 . . . 2 . 1 . 2 . . . 2 . . . . . . 3 27 7 . . . . 1 . . . . . 3 . . . . . Largest Group 24 | . . 3 . 2 2 . . 2 . 1 . 1 . . . 2 2 . . . . . 1 24 19 18 18 . . 1 . . . . . 2 1 1 . . . Highest-Rated Group 1191 | . . 40 . 41 41 . . 64 . 26 . 10 . . . 59 59 . . . . . 26 858 1191 1032 1032 . . 26 . . . . . 167 146 146 . . . Highest-Rated Ally 159 | . . 16 . 31 31 . . 39 . 26 . 10 . . . 30 30 . . . . . 26 159 159 96 96 . . 26 . . . . . 146 146 146 . . . Initial Warlord ECA Mod 7 | . . . . . . . . . 7 6 6 6 6 6 6 5 5 5 5 5 5 4 4 4 4 4 4 3 3 3 3 3 3 2 2 2 1 1 1 . . Total Orders 7 | . . . . . . . . . . . . . . . . . . . . . . . 3 . . . . . . . . . . . . 2 2 . . . . STAY 4 | . . . . . . . . . . . . . . . . . . . . . . . 2 . . . . . . . . . . . . 1 1 . . . . FOLLOW 3 | . . . . . . . . . . . . . . . . . . . . . . . 1 . . . . . . . . . . . . 1 1 . . . . Ally Attacks 352 | . . 31 . . . . . . . . . . . . . 7 7 . . . . . . 87 13 9 157 . . . . . . . . 18 9 14 . . . Total Damage 9268 | . . 295 . . . . . . . . . . . . . 94 63 . . . . . . 1710 189 286 4457 . . . . . . . . 788 617 769 . . . Kills 60 | . . 5 . . . . . . . . . . . . . . 1 . . . . . . 12 . 2 32 . . . . . . . . 2 3 3 . . . Allies Corrupted 6 | . . . . . . . . . . . . . . . . . . . . . . . . . . . 3 . . 1 . . . . . 1 . 1 . . . Allies Melted . | . . . . . . . . . . . . . . . . . . . . . . . . . . . . . . . . . . . . . . . . . . Intel | -11 -10 -10 -9 -9 -9 -8 -8 -8 -8 -7 -7 -7 -7 -7 -7 -6 -6 -6 -6 -6 -6 -5 -5 -5 -5 -5 -5 -4 -4 -4 -4 -4 -4 -3 -3 -3 -2 -2 -2 -1 -1 ------- Run | Yrd Mat Min Mat Min Exi Min Mat Gar Mat Fac Was Fac Low Low Dat Pro Fac Low Low Zio Dee Pro Fac Ext Cet Arc Hub Fac Was Fac Upp Upp Zhi Pro Res Tes Res Qua Frg Acc Com Active Infowar (turns) 9888 | 25 1316 503 1462 426 98 648 1038 832 1183 1400 20 688 . . . . . . . . . . . . . . . . . . . . . . . 1 . . 2 . 246 Zeronet 1 | . . . . . . . . . . . . . . . . . . . . . . . . . . . . . . . . . . . . 1 . . . . . Terrain 2185 | 8 1316 503 358 . . . . . . . . . . . . . . . . . . . . . . . . . . . . . . . . . . . . . . Seismic 5099 | 25 1316 503 1462 426 98 648 621 . . . . . . . . . . . . . . . . . . . . . . . . . . . . . . . . . . Cloaking 2 | . . . . . . . . . . . . . . . . . . . . . . . . . . . . . . . . . . . . . . . 2 . . Jamming 4786 | . . . . . . . 417 832 1183 1400 20 688 . . . . . . . . . . . . . . . . . . . . . . . . . . . . 246 Robot Analysis Total 102 | . 2 . . . . . 1 . . . . . . . . . . . . . . . . 1 . . . . . 98 . . . . . . . . . . . Derelict Logs Recovered 18 | . . 1 . 1 . . . . . . . . 1 2 . 2 . 1 2 1 . 3 . . . . . . . . 2 2 . . . . . . . . . Drone Launches . | . . . . . . . . . . . . . . . . . . . . . . . . . . . . . . . . . . . . . . . . . . Drone Recoveries . | . . . . . . . . . . . . . . . . . . . . . . . . . . . . . . . . . . . . . . . . . . Exploration | -11 -10 -10 -9 -9 -9 -8 -8 -8 -8 -7 -7 -7 -7 -7 -7 -6 -6 -6 -6 -6 -6 -5 -5 -5 -5 -5 -5 -4 -4 -4 -4 -4 -4 -3 -3 -3 -2 -2 -2 -1 -1 ------------- Run | Yrd Mat Min Mat Min Exi Min Mat Gar Mat Fac Was Fac Low Low Dat Pro Fac Low Low Zio Dee Pro Fac Ext Cet Arc Hub Fac Was Fac Upp Upp Zhi Pro Res Tes Res Qua Frg Acc Com Turns Passed 33906 | 93 1316 503 1462 426 98 659 1090 832 1183 1402 20 3209 336 236 45 709 1722 472 297 228 399 1473 1780 1129 360 636 1016 193 42 1213 338 351 51 196 677 772 210 357 2394 1440 2541 Spaces Moved 58740 | 54 1147 448 1874 700 225 1052 1598 1189 1613 2788 72 3917 985 784 133 1096 3389 1226 1053 918 940 1354 3023 1652 188 53 1303 430 185 2607 1181 1200 177 711 1461 1559 296 1014 5448 2918 4779 Core 9 | 9 . . . . . . . . . . . . . . . . . . . . . . . . . . . . . . . . . . . . . . . . . Treads . | . . . . . . . . . . . . . . . . . . . . . . . . . . . . . . . . . . . . . . . . . . Legs . | . . . . . . . . . . . . . . . . . . . . . . . . . . . . . . . . . . . . . . . . . . Wheels 326 | 45 281 . . . . . . . . . . . . . . . . . . . . . . . . . . . . . . . . . . . . . . . . Hover . | . . . . . . . . . . . . . . . . . . . . . . . . . . . . . . . . . . . . . . . . . . Flight 58405 | . 866 448 1874 700 225 1052 1598 1189 1613 2788 72 3917 985 784 133 1096 3389 1226 1053 918 940 1354 3023 1652 188 53 1303 430 185 2607 1181 1200 177 711 1461 1559 296 1014 5448 2918 4779 Fastest Speed 13 | 50 34 34 29 29 29 29 26 26 26 26 28 28 28 28 28 28 20 23 23 23 23 23 19 19 19 23 23 23 19 19 19 19 19 19 19 20 20 13 13 16 13 Average Speed 23 | 83 47 34 31 29 29 29 27 26 26 28 28 28 28 28 28 28 24 23 23 23 23 23 22 22 22 23 23 23 22 21 19 19 19 19 19 20 20 16 15 16 15 Slowest Speed 112 | 100 95 34 112 29 29 29 112 26 109 34 28 28 28 28 28 28 28 23 23 23 23 23 23 23 23 23 27 23 23 90 19 19 19 19 20 20 20 20 85 16 88 Overloaded Moves 595 | . . . . . . . . . . . . . . . . . 129 . . . . . 48 18 2 . . . 24 15 . . . . . . . 23 156 . 180 Propulsion Burnouts . | . . . . . . . . . . . . . . . . . . . . . . . . . . . . . . . . . . . . . . . . . . Robots Hopped 279 | . 27 11 49 5 . 5 7 3 9 18 . 22 . . . . 25 . . . . . 13 5 . . 3 4 . 23 . . . . . 4 . 1 9 . 36 Potential Cave-ins 2 | . . . . . . . . . . 2 . . . . . . . . . . . . . . . . . . . . . . . . . . . . . . . Cave-ins Triggered 1 | . . . . . . . . . . 1 . . . . . . . . . . . . . . . . . . . . . . . . . . . . . . . Exploration Rate (%) 75 | 4 98 69 88 96 61 95 95 89 95 80 65 72 96 75 72 96 69 97 94 81 79 93 66 96 64 67 61 12 99 49 98 90 62 75 48 95 10 94 88 61 82 Regions Visited 41 Branch Regions 25 Pre-discovered Areas 12 | . 2 . 2 . . . 2 . . . . . 2 . 1 1 . . . 1 . . . . . . . . . . . 1 . . . . . . . . . Known Exits Taken 28 | . . . . . . . 1 . . . . 1 1 1 1 1 1 1 1 1 1 1 1 1 1 1 1 . . 1 1 1 1 1 1 1 1 1 1 1 . Unknown Exits Taken 8 | 1 1 1 1 1 1 1 . . 1 . . . . . . . . . . . . . . . . . . . . . . . . . . . . . . . . Scrap Searched 42 | . . 1 . 3 . 1 . . . . . . 4 4 . 3 . 6 3 2 . 5 . . . . . . . . 3 5 . 2 . . . . . . . Spaces Dug 144 | . . . . . . . 2 51 1 12 . 3 . . 5 . 13 2 1 . 1 . 15 . 1 . 5 . . 1 . 1 . . 4 3 . 5 1 5 12 Terrain Destroyed 154 | . . . . . . 10 2 51 1 12 . 3 . . 5 . 13 2 1 . 1 . 15 . 1 . 5 . . 1 . 1 . . 4 3 . 5 1 5 12 Melee 144 | . . . . . . . 2 51 1 12 . 3 . . 5 . 13 2 1 . 1 . 15 . 1 . 5 . . 1 . 1 . . 4 3 . 5 1 5 12 Projectile . | . . . . . . . . . . . . . . . . . . . . . . . . . . . . . . . . . . . . . . . . . . AOE 10 | . . . . . . 10 . . . . . . . . . . . . . . . . . . . . . . . . . . . . . . . . . . . Terrain Rammed . | . . . . . . . . . . . . . . . . . . . . . . . . . . . . . . . . . . . . . . . . . . Walls Destroyed . | . . . . . . . . . . . . . . . . . . . . . . . . . . . . . . . . . . . . . . . . . . Machines Disabled . | . . . . . . . . . . . . . . . . . . . . . . . . . . . . . . . . . . . . . . . . . . Actions | -11 -10 -10 -9 -9 -9 -8 -8 -8 -8 -7 -7 -7 -7 -7 -7 -6 -6 -6 -6 -6 -6 -5 -5 -5 -5 -5 -5 -4 -4 -4 -4 -4 -4 -3 -3 -3 -2 -2 -2 -1 -1 --------- Run | Yrd Mat Min Mat Min Exi Min Mat Gar Mat Fac Was Fac Low Low Dat Pro Fac Low Low Zio Dee Pro Fac Ext Cet Arc Hub Fac Was Fac Upp Upp Zhi Pro Res Tes Res Qua Frg Acc Com Total 76920 | 73 1675 740 2402 843 255 1279 2129 1568 2166 3346 71 5935 1042 798 139 1489 4232 1403 1103 928 1114 2506 4052 2372 499 675 1952 517 184 3230 1293 1319 191 770 1853 1995 442 1196 6870 3828 6446 Wait 10923 | . 376 260 303 85 30 117 330 71 257 431 . 1532 33 2 2 316 571 47 9 . 70 1082 740 451 267 619 117 49 . 314 37 20 1 29 147 272 81 41 634 485 695 Move 58177 | 53 1095 427 1778 689 224 1041 1586 1182 1596 2751 71 3873 984 783 132 1095 3340 1225 1052 917 939 1353 2998 1642 187 52 1296 424 184 2562 1180 1199 176 710 1459 1550 295 1011 5429 2917 4720 Hop 238 | . 24 9 46 5 . 5 4 3 7 18 . 21 . . . . 22 . . . . . 11 4 . . 3 2 . 21 . . . . . 4 . 1 6 . 22 Pick Up 199 | . 6 1 10 2 . 5 14 3 9 7 . 4 1 . . 1 8 3 1 . 8 . 3 1 1 . 9 1 . 7 . . . . . 2 1 3 20 19 49 Fast Attach 105 | 7 6 . 3 1 . . 5 . 8 1 . 2 . . . . 5 1 . . . . . 1 . . 9 2 . 10 . 1 1 1 . 6 . 8 16 1 10 Attach 20 | . 1 . . . . 2 . . 2 1 . 1 . . . . 1 . . . 1 . . 1 . . 1 . . 1 . . . . . . . 1 3 . 4 Detach 5 | . . . . . . 2 . . . . . . . . . . . . . . . . . . . . 1 . . 1 . . . . . . . . . . 1 Swap 203 | 1 5 . 15 . . 11 6 . 5 10 . 7 . . . . 10 1 . 4 7 . 12 . . . 9 3 . 8 . 4 3 . 5 24 . 3 30 1 19 Drop 239 | . 3 2 15 2 . 6 13 3 10 8 . 4 1 . . 1 8 3 1 . 7 . 3 . 1 . 13 3 . 18 . . . . . 7 1 8 23 19 56 Fire 384 | 12 107 24 146 37 1 57 . . . . . . . . . . . . . . . . . . . . . . . . . . . . . . . . . . . Melee 3649 | . . . . . . 5 112 142 197 72 . 344 15 8 5 45 169 60 26 7 44 41 195 113 23 4 315 23 . 204 34 64 4 24 121 100 42 61 325 234 471 Ram 2 | . 2 . . . . . . . . . . . . . . . . . . . . . . . . . . . . . . . . . . . . . . . . Kick . | . . . . . . . . . . . . . . . . . . . . . . . . . . . . . . . . . . . . . . . . . . Crush . | . . . . . . . . . . . . . . . . . . . . . . . . . . . . . . . . . . . . . . . . . . Escape Stasis 419 | . . . . . . . . 92 . 1 . . . . . . 13 . . . . 12 . 20 . . . . . . . . . . 46 . . 37 137 . 61 Rewire 116 | . . . . . . . . 24 . . . . . . . 8 . . . . . . . 74 . . . . . . . . . . . 10 . . . . . Trap 11 | . 3 . 7 . . 1 . . . . . . . . . . . . . . . . . . . . . . . . . . . . . . . . . . . Miscellaneous 2230 | . 47 17 79 22 . 27 59 48 75 46 . 147 8 5 . 23 85 63 14 . 38 18 90 65 20 . 179 10 . 84 42 31 6 6 75 20 22 22 247 152 338 Route ------- -11/Scrapyard -10/Materials (discovered 4 exits: *Mat x3 / [*Min]) -10/Mines (discovered 2 exits: *Mat x2) -9/Materials (discovered 6 exits: *Mat x3 / [*Min x2] / [*Sto]) -9/Mines (discovered 3 exits: *Mat x2 / *Exi) -9/Exiles (discovered 2 exits: [*Min x2]) -8/Mines (discovered 2 exits: *Mat x2) -8/Materials (discovered 4 exits: *Fac x3 / Gar) -8/Garrison (discovered 3 exits: *Mat x3) -8/Materials (discovered 3 exits: *Fac x3) -7/Factory (discovered 4 exits: *Fac x2 / Low x2) -7/Waste -7/Factory (discovered 5 exits: *Fac x3 / *Low x2) -7/Lower Caves -7/Lower Caves (discovered 2 exits: *Fac / *Dat) -7/Data Miner -6/Proximity Caves -6/Factory (discovered 4 exits: *Fac x2 / *Low x2) -6/Lower Caves -6/Lower Caves (discovered 2 exits: *Fac / *Zio) -6/Zion (discovered 2 exits: *Dee / [*Pro]) -6/Deep Caves -5/Proximity Caves -5/Factory (discovered 5 exits: Fac x2 / *Upp x2 / *Ext) -5/Extension (discovered 2 exits: *Fac / *Cet) -5/Cetus (discovered 2 exits: *Fac / *Arc) -5/Archives (discovered 2 exits: *Hub x2) -5/Hub_04(d) (discovered 2 exits: *Fac x2) -4/Factory -4/Waste -4/Factory (discovered 5 exits: *Res x2 / *Upp x2 / Arm) -4/Upper Caves -4/Upper Caves (discovered 2 exits: *Res / *Zhi) -4/Zhirov -3/Proximity Caves -3/Research (discovered 4 exits: *Res x2 / *Tes x2) -3/Testing -2/Research (discovered 2 exits: *Qua x2) -2/Quarantine (discovered 3 exits: *Acc / *Sec / *Frg) -2/Protoforge -1/Access -1/Command (discovered 2 exits: [*Sur x2]) 0b11 Command History --------- Turn | Location | Event 2 | -11/Scrapyard | Met Revision 17 4 | -11/Scrapyard | Upgraded with Propulsion slot (x1) 4 | -11/Scrapyard | Upgraded with Utility slot (x2) 4 | -11/Scrapyard | Upgraded with Weapon slot (x1) 4 | -11/Scrapyard | Discovered new exit (range 15) 94 | -11/Scrapyard | Entered Materials 312 | -10/Materials | Build established: Mutant 484 | -10/Materials | Destroyed 7 combat bots 596 | -10/Materials | Reached level 2 652 | -10/Materials | Discovered new exit (range 14) 775 | -10/Materials | Build established: Scavenger-Mutant 932 | -10/Materials | Discovered new exit (range 16) 944 | -10/Materials | Reached level 3 1076 | -10/Materials | Upgraded with Propulsion slot (x1) 1096 | -10/Materials | Discovered new exit (range 16) 1241 | -10/Materials | Discovered new exit (range 16) 1288 | -10/Materials | Reached level 4 1299 | -10/Materials | Upgraded with Utility slot (x1) 1410 | -10/Materials | Entered Mines 1418 | -10/Mines | Learned Materials stockpile data 1452 | -10/Mines | Discovered new exit (range 10) 1455 | -10/Mines | Discovered new exit (range 8) 1459 | -10/Mines | Assembled infested the area 1464 | -10/Mines | Assisted by a Guerilla fighting off Assembled 1496 | -10/Mines | Assisted by bots powering up and referring to "LRC-V3" 1913 | -10/Mines | Entered Materials 1915 | -9/Materials | Reached level 5 2138 | -9/Materials | Upgraded with Utility slot (x1) 2160 | -9/Materials | Reached level 6 2229 | -9/Materials | Discovered new exit (range 12) 2293 | -9/Materials | Discovered new exit (range 13) 2321 | -9/Materials | Discovered new exit (range 12) 2413 | -9/Materials | Reached level 7 2514 | -9/Materials | Discovered new exit (range 9) 2573 | -9/Materials | Build established: Sprinter 2586 | -9/Materials | Reached level 8 2616 | -9/Materials | Upgraded with Utility slot (x1) 2638 | -9/Materials | Discovered new exit (range 10) 2713 | -9/Materials | First assault squad dispatched 2910 | -9/Materials | Reached level 9 3100 | -9/Materials | Sterilization system engaged 3100 | -9/Materials | Non-combat units ordered to evacuate 3200 | -9/Materials | Combat units ordered to evacuate 3216 | -9/Materials | Discovered new exit (range 15) 3375 | -9/Materials | Entered Mines 3378 | -9/Mines | Discovered new exit (range 6) 3525 | -9/Mines | Upgraded with Utility slot (x1) 3537 | -9/Mines | Learned Materials stockpile data 3545 | -9/Mines | Discovered new exit (range 12) 3589 | -9/Mines | Reached level 10 3762 | -9/Mines | Deemed a non-threat by the Exiles lab entrance 3762 | -9/Mines | Discovered new exit (range 5) 3801 | -9/Mines | Entered Exiles 3801 | -9/Exiles | Accompanied by 2 allies 3806 | -9/Exiles | Discovered new exit (range 15) 3809 | -9/Exiles | Met 8R-AWN 3813 | -9/Exiles | Met EX-HEX 3821 | -9/Exiles | Met EX-BIN 3825 | -9/Exiles | Aligned with FarCom system 3825 | -9/Exiles | Given EX-Vault access code 3831 | -9/Exiles | Led the pair of lost Derelicts to a safe place 3835 | -9/Exiles | Opened EX-Vault 3843 | -9/Exiles | Warned to stay clear of 0b10 Research branches 3853 | -9/Exiles | Met EX-DEC 3858 | -9/Exiles | Attacked by the Exiles 3866 | -9/Exiles | Discovered new exit (range 11) 3899 | -9/Exiles | Entered Mines 3911 | -8/Mines | 1C-UTU came to Exiles' defense 3926 | -8/Mines | Discovered new exit (range 15) 4308 | -8/Mines | Destroyed 1C-UTU 4312 | -8/Mines | Found Corrupted Prototype Device 4312 | -8/Mines | Identified Exp. Actuator Array 4314 | -8/Mines | Found Corrupted Prototype Slashing Weapon 4314 | -8/Mines | Identified 1C-UTU's Sword "Choppy" 4316 | -8/Mines | Found Corrupted Prototype Slashing Weapon 4316 | -8/Mines | Identified 1C-UTU's Sword "Lootmaker" 4323 | -8/Mines | Found Corrupted Prototype Processor 4323 | -8/Mines | Identified Exp. Melee Analysis Suite 4324 | -8/Mines | System corruption reached 10% 4325 | -8/Mines | Found Corrupted Prototype Protection 4325 | -8/Mines | Identified 1C-UTU's Buckler 4364 | -8/Mines | Discovered new exit (range 8) 4378 | -8/Mines | Reached level 11 4455 | -8/Mines | Found a Scrap Suit stashed away for nefarious purposes 4558 | -8/Mines | Entered Materials 4572 | -8/Materials | Build established: Scavenger-Sprinter 4638 | -8/Materials | Reached level 12 4657 | -8/Materials | Identified exit to Garrison 4944 | -8/Materials | Discovered new exit (range 15) 5134 | -8/Materials | Reached level 13 5193 | -8/Materials | Core integrity fell below 50% 5195 | -8/Materials | Discovered new exit (range 10) 5217 | -8/Materials | Upgraded with Propulsion slot (x1) 5332 | -8/Materials | Discovered new exit (range 11) 5358 | -8/Materials | First assault squad dispatched 5556 | -8/Materials | Sterilization system engaged 5556 | -8/Materials | Non-combat units ordered to evacuate 5602 | -8/Materials | Destroyed 7 combat bots 5648 | -8/Materials | Entered Garrison 5650 | -8/Garrison | Reached level 14 5668 | -8/Garrison | Triggered checkpoint 5780 | -8/Garrison | Garrison Relay disabled 5792 | -8/Garrison | Destroyed 7 combat bots 5821 | -8/Garrison | Discovered new exit (range 11) 5826 | -8/Garrison | Garrison Relay disabled 5834 | -8/Garrison | Triggered checkpoint 5956 | -8/Garrison | Destroyed 7 combat bots 6018 | -8/Garrison | Garrison Relay disabled 6064 | -8/Garrison | Discovered new exit (range 13) 6112 | -8/Garrison | Triggered checkpoint 6142 | -8/Garrison | Discovered new exit (range 13) 6160 | -8/Garrison | Triggered checkpoint 6236 | -8/Garrison | Garrison Relay disabled 6394 | -8/Garrison | Garrison Relay disabled 6480 | -8/Garrison | Entered Materials 6528 | -8/Materials | Reached level 15 6534 | -8/Materials | Upgraded with Utility slot (x1) 6546 | -8/Materials | Discovered new exit (range 13) 6631 | -8/Materials | Destroyed 7 combat bots 6687 | -8/Materials | Discovered new exit (range 8) 6880 | -8/Materials | First assault squad dispatched 6970 | -8/Materials | High security lockdown imminent 7019 | -8/Materials | Destroyed 11 combat bots 7043 | -8/Materials | Discovered new exit (range 12) 7050 | -8/Materials | High security lockdown engaged 7322 | -8/Materials | Sterilization system engaged 7322 | -8/Materials | Non-combat units ordered to evacuate 7382 | -8/Materials | Destroyed 17 combat bots 7422 | -8/Materials | Combat units ordered to evacuate 7536 | -8/Materials | Reached level 16 7602 | -8/Materials | Destroyed 18 combat bots 7622 | -8/Materials | Ambient heat levels rising (+10) 7663 | -8/Materials | Entered Factory 7910 | -7/Factory | Core integrity fell below 50% 8201 | -7/Factory | Identified exit to Lower Caves 8463 | -7/Factory | First assault squad dispatched 8617 | -7/Factory | Discovered new exit (range 12) 8774 | -7/Factory | Reached level 17 8987 | -7/Factory | Fabricated Exp. Actuator Array? 8998 | -7/Factory | Discovered new exit (range 16) 9011 | -7/Factory | Crushed by falling debris 9054 | -7/Factory | High security lockdown imminent 9065 | -7/Factory | Manually triggered Chute Trap 9065 | -7/Factory | Sucked down chute 9065 | -7/Factory | Entered Waste 9071 | -7/Waste | Spotted C-40 Crusher 9072 | -7/Waste | Spotted C-40 Crusher 9078 | -7/Waste | Spotted C-40 Crusher 9080 | -7/Waste | EMP discharged 9081 | -7/Waste | Discovered new exit (range 16) 9081 | -7/Waste | Spotted C-40 Crusher 9085 | -7/Waste | Entered Factory 9336 | -7/Factory | Discovered new exit (range 7) 9350 | -7/Factory | Destroyed 7 combat bots 9485 | -7/Factory | First assault squad dispatched 9491 | -7/Factory | Discovered new exit (range 16) 9508 | -7/Factory | Identified exit to Factory 9674 | -7/Factory | Discovered exit to Lower Caves (range 3) 9898 | -7/Factory | Discovered exit to Factory (range 9) 9906 | -7/Factory | Discovered exit to Lower Caves (range 15) 10300 | -7/Factory | Reached level 18 10540 | -7/Factory | Destroyed 8 combat bots 10572 | -7/Factory | Cargo convoy interrupted 10669 | -7/Factory | Destroyed 11 combat bots 11487 | -7/Factory | High security lockdown imminent 11567 | -7/Factory | High security lockdown engaged 11684 | -7/Factory | Destroyed 11 combat bots 11809 | -7/Factory | Destroyed 8 combat bots 12003 | -7/Factory | Destroyed 7 combat bots 12109 | -7/Factory | Reached level 19 12114 | -7/Factory | Upgraded with Utility slot (x1) 12151 | -7/Factory | Sterilization system engaged 12151 | -7/Factory | Non-combat units ordered to evacuate 12157 | -7/Factory | Destroyed 11 combat bots 12251 | -7/Factory | Combat units ordered to evacuate 12293 | -7/Factory | Destroyed 13 combat bots 12294 | -7/Factory | Entered Lower Caves 12300 | -7/Lower Caves | Met a Warlord Commander 12301 | -7/Lower Caves | Learned location of Warlord (-5) 12302 | -7/Lower Caves | Warlord Commander delivered Encrypted Comm Array 12331 | -7/Lower Caves | Encountered a Warlord checkpoint 12534 | -7/Lower Caves | Discovered new exit (range 13) 12537 | -7/Lower Caves | Identified exit to Lower Caves 12630 | -7/Lower Caves | Entered another Lower Caves area 12631 | -7/Lower Caves | Identified exit to Data Miner 12633 | -7/Lower Caves | Discovered exit to Factory (range 13) 12676 | -7/Lower Caves | Attracted the attention of an 0b10 checkpoint 12710 | -7/Lower Caves | Destroyed 7 combat bots 12712 | -7/Lower Caves | Entered a destroyed Warlord outpost 12731 | -7/Lower Caves | Learned Factory terminal intel 12866 | -7/Lower Caves | Entered Data Miner 12866 | -7/Data Miner | Discovered new exit (range 6) 12872 | -7/Data Miner | Met Data Miner 12880 | -7/Data Miner | Learned location of Section 7 (-2) 12880 | -7/Data Miner | Acquired the access code to Warlord's prototype stash 12884 | -7/Data Miner | Received God Mode back door access code from Data Miner 12909 | -7/Data Miner | Identified exit to Proximity Caves 12911 | -7/Data Miner | Entered Proximity Caves 12912 | -6/Proximity Caves | Learned location of Zion (-6) 12927 | -6/Proximity Caves | Attracted the attention of an 0b10 outpost 12961 | -6/Proximity Caves | Destroyed 7 combat bots 13127 | -6/Proximity Caves | Attracted the attention of an 0b10 checkpoint 13132 | -6/Proximity Caves | Reached level 20 13232 | -6/Proximity Caves | Discovered exit to Factory (range 8) 13378 | -6/Proximity Caves | Spotted B-75 Beast 13429 | -6/Proximity Caves | Destroyed B-75 Beast 13620 | -6/Proximity Caves | Entered Factory 13620 | -6/Factory | Accompanied by 2 allies 13621 | -6/Factory | Loaded intel: 24 terminal locations 13635 | -6/Factory | Discovered new exit (range 16) 13673 | -6/Factory | Identified exit to Lower Caves 13935 | -6/Factory | Unchained authorized (GL-D0S) 14095 | -6/Factory | Upgraded with Propulsion slot (x1) 14126 | -6/Factory | Watched by a mysterious "MATRIX" hacker 14309 | -6/Factory | Discovered exit to Lower Caves (range 15) 14366 | -6/Factory | Reached level 21 14401 | -6/Factory | Spotted GL-D0S 14414 | -6/Factory | Discovered new exit (range 8) 14427 | -6/Factory | Destroyed GL-D0S 14518 | -6/Factory | Identified exit to Factory 14601 | -6/Factory | Core integrity fell below 50% 14728 | -6/Factory | Spotted B-75 Beast 14748 | -6/Factory | Destroyed B-75 Beast 15013 | -6/Factory | Fabricated Exp. Actuator Array (x1) 15199 | -6/Factory | Discovered exit to Factory (range 3) 15342 | -6/Factory | Entered Lower Caves 15381 | -6/Lower Caves | Spotted B-75 Beast 15390 | -6/Lower Caves | Encountered a Warlord checkpoint 15427 | -6/Lower Caves | Ambushed by research squad 15432 | -6/Lower Caves | Murdered 3 allies 15468 | -6/Lower Caves | Destroyed B-75 Beast 15545 | -6/Lower Caves | Destroyed 12 combat bots 15549 | -6/Lower Caves | Learned Armory trap positions 15549 | -6/Lower Caves | Learned Research emergency access door positions 15670 | -6/Lower Caves | Discovered new exit (range 16) 15673 | -6/Lower Caves | Identified exit to Lower Caves 15814 | -6/Lower Caves | Entered another Lower Caves area 15820 | -6/Lower Caves | Discovered exit to Factory (range 12) 15928 | -6/Lower Caves | Learned location of 1 exit from Proximity Caves 15959 | -6/Lower Caves | Destroyed 9 combat bots 15959 | -6/Lower Caves | Spotted B-75 Beast 15994 | -6/Lower Caves | Destroyed B-75 Beast 16014 | -6/Lower Caves | Learned Factory trap positions 16060 | -6/Lower Caves | Discovered new exit (range 16) 16063 | -6/Lower Caves | Encountered a Warlord checkpoint 16073 | -6/Lower Caves | Identified exit to Zion 16111 | -6/Lower Caves | Entered Zion 16119 | -6/Zion | Given A8's code to call for help 16135 | -6/Zion | Discovered new exit (range 10) 16159 | -6/Zion | Learned Factory emergency access door positions 16194 | -6/Zion | Learned location of 1 exit from Lower Caves 16325 | -6/Zion | Attacked by Zionites 16339 | -6/Zion | Discovered new exit (range 4) 16339 | -6/Zion | Saw the warning signs outside the Deep Caves entrance 16339 | -6/Zion | Identified exit to Deep Caves 16339 | -6/Zion | Entered Deep Caves 16341 | -6/Deep Caves | Reached level 22 16372 | -6/Deep Caves | Upgraded with Utility slot (x1) 16403 | -6/Deep Caves | Attacked by Z-Imprinter 16409 | -6/Deep Caves | Destroyed Z-Imprinter 16435 | -6/Deep Caves | Found Prototype Protection 16435 | -6/Deep Caves | Identified Zio. Weapon Casing 16466 | -6/Deep Caves | Z-Facility disabled 16536 | -6/Deep Caves | Spotted Golem 16624 | -6/Deep Caves | Destroyed Golem 16726 | -6/Deep Caves | Discovered new exit (range 7) 16728 | -6/Deep Caves | Identified exit to Proximity Caves 16738 | -6/Deep Caves | Entered Proximity Caves 16795 | -5/Proximity Caves | Learned location of 1 exit from Factory 16801 | -5/Proximity Caves | Attracted the attention of an 0b10 checkpoint 16818 | -5/Proximity Caves | Learned Factory terminal intel 16853 | -5/Proximity Caves | Destroyed 13 combat bots 16883 | -5/Proximity Caves | Learned location of 2 exits from Factory 16929 | -5/Proximity Caves | Spotted B-75 Beast 16933 | -5/Proximity Caves | Destroyed B-75 Beast 18211 | -5/Proximity Caves | Entered Factory 18212 | -5/Factory | Identified exit to Extension 18213 | -5/Factory | Identified exit to Upper Caves 18213 | -5/Factory | Identified exit to Factory 18213 | -5/Factory | Reached level 23 18214 | -5/Factory | Loaded intel: 93 trap records 18216 | -5/Factory | Loaded intel: 27 terminal locations 18889 | -5/Factory | Cargo convoy interrupted 18983 | -5/Factory | Found Prototype Device 18983 | -5/Factory | Identified Exp. Thermal Defense Suite 18987 | -5/Factory | Found Prototype Device 18987 | -5/Factory | Identified Thermal Barrier 18989 | -5/Factory | Found Prototype Device 18989 | -5/Factory | Identified Exp. Focal Shield 18994 | -5/Factory | Destroyed 9 combat bots 19014 | -5/Factory | Found Thermal Barrier 19138 | -5/Factory | Destroyed 8 combat bots 19204 | -5/Factory | Destroyed 7 combat bots 19281 | -5/Factory | Discovered exit to Upper Caves (range 15) 19411 | -5/Factory | First assault squad dispatched 19547 | -5/Factory | Reached level 24 19638 | -5/Factory | Spotted B-75 Beast 19722 | -5/Factory | Unchained authorized (QV-33N) 19725 | -5/Factory | Destroyed B-75 Beast 19975 | -5/Factory | Core integrity fell below 50% 19991 | -5/Factory | Entered Extension 20004 | -5/Extension | Disrupted transfer network 20032 | -5/Extension | Rescued A7 20047 | -5/Extension | Rescued a captive Derelict 20054 | -5/Extension | Rescued a captive Derelict 20055 | -5/Extension | Rescued a captive Derelict 20145 | -5/Extension | Rescued a captive Derelict 20145 | -5/Extension | Rescued a captive Derelict 20149 | -5/Extension | Rescued a captive Derelict 20155 | -5/Extension | Rescued a captive Derelict 20157 | -5/Extension | Rescued a captive Derelict 20169 | -5/Extension | Spotted B-75 Beast 20171 | -5/Extension | Spotted B-75 Beast 20183 | -5/Extension | Destroyed B-75 Beast 20190 | -5/Extension | Allies destroyed B-75 Beast 20235 | -5/Extension | Rescued a captive Derelict 20276 | -5/Extension | Rescued a captive Derelict 20321 | -5/Extension | Rescued a captive Derelict 20323 | -5/Extension | Rescued a captive Derelict 20367 | -5/Extension | Reached level 25 20372 | -5/Extension | Discovered exit to Factory (range 10) 20372 | -5/Extension | Discovered new exit (range 6) 20508 | -5/Extension | Build established: Commander-Sprinter 20508 | -5/Extension | Upgraded with Utility slot (x1) 20591 | -5/Extension | First assault squad dispatched 20746 | -5/Extension | Destroyed 9 combat bots 20755 | -5/Extension | Lost 4 allies 20976 | -5/Extension | Identified exit to Cetus 21120 | -5/Extension | Entered Cetus 21120 | -5/Cetus | Accompanied by 13 allies (A7) 21124 | -5/Cetus | Spotted Cetus Guard 21124 | -5/Cetus | Spotted Cetus Guard 21124 | -5/Cetus | Spotted Cetus Guard 21129 | -5/Cetus | Spotted Cetus Guard 21131 | -5/Cetus | Destroyed Cetus Guard 21134 | -5/Cetus | Destroyed Cetus Guard 21138 | -5/Cetus | Destroyed Cetus Guard 21141 | -5/Cetus | Destroyed Cetus Guard 21143 | -5/Cetus | Acquired a Cetus Manufacturing Module code from A7 21158 | -5/Cetus | Started Cetus Manufacturing Module 21166 | -5/Cetus | Enhanced Grunt warped into view, answering call for help 21168 | -5/Cetus | Enhanced Grunt warped into view, answering call for help 21183 | -5/Cetus | Manufactured an Enhanced Grunt 21208 | -5/Cetus | Manufactured an Enhanced Grunt 21233 | -5/Cetus | Manufactured an Enhanced Grunt 21258 | -5/Cetus | Manufactured an Enhanced Grunt 21283 | -5/Cetus | Manufactured an Enhanced Grunt 21300 | -5/Cetus | Discovered new exit (range 15) 21304 | -5/Cetus | Spotted Cetus Guard 21304 | -5/Cetus | Spotted Cetus Guard 21306 | -5/Cetus | Spotted Cetus Guard 21316 | -5/Cetus | Spotted Cetus Guard 21316 | -5/Cetus | Discovered exit to Factory (range 16) 21318 | -5/Cetus | Destroyed Cetus Guard 21322 | -5/Cetus | Destroyed Cetus Guard 21325 | -5/Cetus | Destroyed Cetus Guard 21330 | -5/Cetus | Destroyed Cetus Guard 21331 | -5/Cetus | Met Revision 17 21356 | -5/Cetus | Identified exit to Archives 21480 | -5/Cetus | Entered Archives 21480 | -5/Archives | Accompanied by 19 allies (A7) 21490 | -5/Archives | Discovered new exit (range 14) 21494 | -5/Archives | Discovered new exit (range 15) 21498 | -5/Archives | Identified exit to Hub_04(d) 22116 | -5/Archives | Entered Hub_04(d) 22116 | -5/Hub_04(d) | Accompanied by 18 allies 22125 | -5/Hub_04(d) | Network Hub disabled 22147 | -5/Hub_04(d) | Spotted Lightning 22147 | -5/Hub_04(d) | Discovered exit to Factory (range 8) 22147 | -5/Hub_04(d) | Spotted Lightning 22147 | -5/Hub_04(d) | Spotted Lightning 22170 | -5/Hub_04(d) | Destroyed Lightning 22173 | -5/Hub_04(d) | Destroyed Lightning 22177 | -5/Hub_04(d) | Destroyed Lightning 22192 | -5/Hub_04(d) | Spotted Lightning 22192 | -5/Hub_04(d) | Spotted Lightning 22192 | -5/Hub_04(d) | Spotted Lightning 22198 | -5/Hub_04(d) | Destroyed 10 combat bots 22204 | -5/Hub_04(d) | Destroyed Lightning 22218 | -5/Hub_04(d) | Allies destroyed Lightning 22220 | -5/Hub_04(d) | Allies destroyed Lightning 22246 | -5/Hub_04(d) | Reached level 26 22256 | -5/Hub_04(d) | Network Hub disabled 22302 | -5/Hub_04(d) | Garrison activated, responded to threat 22324 | -5/Hub_04(d) | Lost 14 allies 22325 | -5/Hub_04(d) | Destroyed 11 combat bots 22396 | -5/Hub_04(d) | Destroyed 10 combat bots 22404 | -5/Hub_04(d) | Discovered exit to Factory (range 16) 22412 | -5/Hub_04(d) | High security lockdown imminent 22435 | -5/Hub_04(d) | Network Hub disabled 22492 | -5/Hub_04(d) | High security lockdown engaged 22528 | -5/Hub_04(d) | Build established: Scavenger-Sprinter 22562 | -5/Hub_04(d) | Destroyed 7 combat bots 22655 | -5/Hub_04(d) | Garrison activated, responded to threat 22679 | -5/Hub_04(d) | Destroyed 21 combat bots 22778 | -5/Hub_04(d) | Destroyed 17 combat bots 22836 | -5/Hub_04(d) | Destroyed 7 combat bots 22897 | -5/Hub_04(d) | Sterilization system engaged 22897 | -5/Hub_04(d) | Non-combat units ordered to evacuate 22902 | -5/Hub_04(d) | Destroyed 8 combat bots 22997 | -5/Hub_04(d) | Combat units ordered to evacuate 23022 | -5/Hub_04(d) | Destroyed 7 combat bots 23041 | -5/Hub_04(d) | Spotted Lightning 23042 | -5/Hub_04(d) | Spotted Lightning 23053 | -5/Hub_04(d) | Destroyed Lightning 23057 | -5/Hub_04(d) | Destroyed Lightning 23059 | -5/Hub_04(d) | Found Prototype Device 23059 | -5/Hub_04(d) | Identified Exp. Phase Shifter 23069 | -5/Hub_04(d) | Upgraded with Power slot (x1) 23078 | -5/Hub_04(d) | Destroyed 7 combat bots 23092 | -5/Hub_04(d) | Found Prototype Device 23092 | -5/Hub_04(d) | Identified Exp. Thermal Shield 23109 | -5/Hub_04(d) | Found Prototype Device 23109 | -5/Hub_04(d) | Identified Exp. EM Shield 23114 | -5/Hub_04(d) | Found Prototype Processor 23114 | -5/Hub_04(d) | Identified Exp. Targeting Computer 23132 | -5/Hub_04(d) | Entered Factory 23134 | -4/Factory | Reached level 27 23272 | -4/Factory | Discovered new exit (range 8) 23278 | -4/Factory | Identified exit to Upper Caves 23305 | -4/Factory | High security lockdown imminent 23325 | -4/Factory | Manually triggered Chute Trap 23325 | -4/Factory | Sucked down chute 23325 | -4/Factory | Entered Waste 23331 | -4/Waste | Spotted C-40 Crusher 23331 | -4/Waste | Spotted C-40 Crusher 23332 | -4/Waste | Spotted C-40 Crusher 23347 | -4/Waste | Spotted C-40 Crusher 23348 | -4/Waste | Spotted C-40 Crusher 23351 | -4/Waste | Spotted C-40 Crusher 23357 | -4/Waste | Discovered new exit (range 14) 23367 | -4/Waste | Identified exit to Factory 23367 | -4/Waste | Entered Factory 23398 | -4/Factory | Spotted B-86 Titan 23406 | -4/Factory | Destroyed B-86 Titan 23450 | -4/Factory | Discovered exit to Upper Caves (range 14) 23470 | -4/Factory | Discovered new exit (range 13) 23476 | -4/Factory | Garrison activated, responded to threat 23485 | -4/Factory | Identified exit to Research 23541 | -4/Factory | Unchained authorized (QV-33N) 23560 | -4/Factory | Destroyed 14 combat bots 23617 | -4/Factory | First assault squad dispatched 23627 | -4/Factory | Spotted B-86 Titan 23666 | -4/Factory | Identified exit to Armory 23757 | -4/Factory | Spotted QV-33N 23761 | -4/Factory | Destroyed 7 combat bots 23769 | -4/Factory | Core integrity fell below 50% 23834 | -4/Factory | Destroyed QV-33N 23837 | -4/Factory | Found Prototype Device 23837 | -4/Factory | Identified QV-33N's Drone Shield 23844 | -4/Factory | Found Prototype Protection 23844 | -4/Factory | Identified Centrium Heavy Armor Plating 23869 | -4/Factory | Discovered exit to Research (range 6) 23930 | -4/Factory | Unchained authorized (BL-1NK) 24008 | -4/Factory | Spotted BL-1NK 24047 | -4/Factory | Destroyed BL-1NK 24047 | -4/Factory | Reached level 28 24059 | -4/Factory | Upgraded with Utility slot (x1) 24060 | -4/Factory | Found Lgt. Regenerative Plating 24062 | -4/Factory | Found Prototype Device 24062 | -4/Factory | Identified Blink Core 24101 | -4/Factory | Found ID Mask 24137 | -4/Factory | Spotted Executioner 24138 | -4/Factory | Cargo convoy interrupted 24249 | -4/Factory | Unchained authorized (CL-0N3) 24300 | -4/Factory | Destroyed Executioner 24364 | -4/Factory | A-15 Conveyor reconstituted as Combat Programmer 24364 | -4/Factory | Spotted Combat Programmer 24366 | -4/Factory | Destroyed Combat Programmer 24366 | -4/Factory | Combat Programmer reconstituted as CL-0N3 24367 | -4/Factory | Spotted CL-0N3 24390 | -4/Factory | Destroyed CL-0N3 24391 | -4/Factory | Extracted schematics, analyses from CL-0N3's data core 24580 | -4/Factory | Entered Upper Caves 24581 | -4/Upper Caves | Encountered a Warlord checkpoint 24692 | -4/Upper Caves | Attracted the attention of an 0b10 outpost 24756 | -4/Upper Caves | Destroyed 9 combat bots 24808 | -4/Upper Caves | Murdered 3 allies 24847 | -4/Upper Caves | Entered an active Warlord outpost 24849 | -4/Upper Caves | Learned location of 1 exit from Factory 24849 | -4/Upper Caves | Learned Factory garrison access intel 24849 | -4/Upper Caves | Learned Armory garrison access intel 24852 | -4/Upper Caves | Discovered new exit (range 9) 24854 | -4/Upper Caves | Identified exit to Upper Caves 24896 | -4/Upper Caves | Found DCF Scrap (14 items) 24897 | -4/Upper Caves | Learned Research emergency access door positions 24918 | -4/Upper Caves | Entered another Upper Caves area 24927 | -4/Upper Caves | Learned Research garrison access intel 24964 | -4/Upper Caves | Attracted the attention of an 0b10 base 24986 | -4/Upper Caves | Learned Factory emergency access door positions 24986 | -4/Upper Caves | Learned Extension stockpile data 24986 | -4/Upper Caves | Learned Armory emergency access door positions 24986 | -4/Upper Caves | Learned Research terminal intel 24988 | -4/Upper Caves | Spotted B-86 Titan 24995 | -4/Upper Caves | Destroyed B-86 Titan 25010 | -4/Upper Caves | Acquired the password to a Derelict Tinkerer's latest research 25016 | -4/Upper Caves | Destroyed 8 combat bots 25020 | -4/Upper Caves | Discovered new exit (range 9) 25022 | -4/Upper Caves | Identified exit to Zhirov 25032 | -4/Upper Caves | Caught by Unaware searching for contraband prototypes 25193 | -4/Upper Caves | Destroyed 9 combat bots 25208 | -4/Upper Caves | Learned location of 1 exit from Research 25231 | -4/Upper Caves | Discovered exit to Research (range 7) 25269 | -4/Upper Caves | Entered Zhirov 25269 | -4/Zhirov | Discovered new exit (range 3) 25273 | -4/Zhirov | Met Zhirov 25281 | -4/Zhirov | Found Alien Artifact 25281 | -4/Zhirov | Identified Integrated Dissipator 25281 | -4/Zhirov | Installed Integrated Dissipator, increased core heat dissipation (+20) 25313 | -4/Zhirov | Zhirov requested help retrieving the SGEMP Prototype 25320 | -4/Zhirov | Identified exit to Proximity Caves 25320 | -4/Zhirov | Entered Proximity Caves 25358 | -3/Proximity Caves | Attracted the attention of an 0b10 checkpoint 25383 | -3/Proximity Caves | Reached level 29 25397 | -3/Proximity Caves | Spotted B-86 Titan 25409 | -3/Proximity Caves | Destroyed B-86 Titan 25446 | -3/Proximity Caves | Destroyed 10 combat bots 25475 | -3/Proximity Caves | Discovered exit to Research (range 9) 25516 | -3/Proximity Caves | Entered Research 25517 | -3/Research | Identified exit to Research 25519 | -3/Research | Loaded intel: 21 terminal locations 25520 | -3/Research | Loaded intel: 3 garrison access locations 25541 | -3/Research | Discovered exit to Research (range 9) 25541 | -3/Research | Spotted B-86 Titan 25649 | -3/Research | Spotted B-86 Titan 25653 | -3/Research | Destroyed 9 combat bots 25716 | -3/Research | Revision forces began assault on 0b10 25732 | -3/Research | Destroyed B-86 Titan 25887 | -3/Research | Reached level 30 25887 | -3/Research | Met up with Revision 17++ 26030 | -3/Research | Identified exit to Testing 26135 | -3/Research | Destroyed 14 combat bots 26193 | -3/Research | Entered Testing 26198 | -3/Testing | Destroyed 9 combat bots 26212 | -3/Testing | Rewired PL-EFY2CGJ5J4 26267 | -3/Testing | Found Prototype Launcher 26267 | -3/Testing | Identified Z-bomb Delivery System 26332 | -3/Testing | Unchained authorized (V4-D3R) 26392 | -3/Testing | Spotted Striker 26575 | -3/Testing | Spotted V4-D3R 26581 | -3/Testing | Upgraded with Weapon slot (x1) 26581 | -3/Testing | Found Prototype Slashing Weapon 26581 | -3/Testing | Identified V4-D3R's Sabre 26600 | -3/Testing | Allies destroyed V4-D3R 26601 | -3/Testing | Found Prototype Storage 26601 | -3/Testing | Identified V4-D3R's Forcewell 26604 | -3/Testing | Found Prototype Special Weapon 26604 | -3/Testing | Identified V4-D3R's Forcegen 26611 | -3/Testing | Found Femtoactuators 26616 | -3/Testing | Found Exp. Melee Analysis Suite 26619 | -3/Testing | Found Prototype Processor 26619 | -3/Testing | Identified Zeronet Interface 26633 | -3/Testing | Found Prototype Protection 26633 | -3/Testing | Identified V4-D3R's Cape 26635 | -3/Testing | Found Prototype Protection 26635 | -3/Testing | Identified Med. Regenerative Plating 26693 | -3/Testing | First assault squad dispatched 26756 | -3/Testing | Destroyed 8 combat bots 26772 | -3/Testing | Reached level 31 26808 | -3/Testing | Destroyed 8 combat bots 26809 | -3/Testing | Found Prototype Energy Gun 26809 | -3/Testing | Identified Warp Gun 26884 | -3/Testing | Rewired PG-B5GOIRBVW5 26913 | -3/Testing | Discovered exit to Research (range 11) 26965 | -3/Testing | Entered Research 26965 | -2/Research | Accompanied by 1 ally 26966 | -2/Research | Identified exit to Quarantine 27069 | -2/Research | Destroyed 8 combat bots 27087 | -2/Research | Reached level 32 27101 | -2/Research | Garrison activated, responded to threat 27135 | -2/Research | Targeted by mysterious "MATRIX" hacker 27144 | -2/Research | Discovered exit to Quarantine (range 3) 27147 | -2/Research | Destroyed 12 combat bots 27175 | -2/Research | Entered Quarantine 27175 | -2/Quarantine | Accompanied by 1 ally 27186 | -2/Quarantine | Upgraded with Propulsion slot (x1) 27186 | -2/Quarantine | Upgraded with Weapon slot (x1) 27298 | -2/Quarantine | Destroyed 7 combat bots 27302 | -2/Quarantine | Found Alien Artifact 27304 | -2/Quarantine | Identified Subatomic Replicator 27304 | -2/Quarantine | Used Subatomic Replicator to replicate 1C-UTU's Sword "Choppy" 27340 | -2/Quarantine | Scanned by Researcher 27363 | -2/Quarantine | Garrison activated, responded to threat 27422 | -2/Quarantine | Reached level 33 27425 | -2/Quarantine | First assault squad dispatched 27449 | -2/Quarantine | Discovered new exit (range 12) 27456 | -2/Quarantine | Destroyed 14 combat bots 27477 | -2/Quarantine | Spotted Fortress 27491 | -2/Quarantine | Destroyed Fortress 27496 | -2/Quarantine | Found Prototype Device 27496 | -2/Quarantine | Identified Exp. Force Field 27510 | -2/Quarantine | Found Exp. EM Shield 27529 | -2/Quarantine | Discovered new exit (range 5) 27529 | -2/Quarantine | Discovered new exit (range 6) 27529 | -2/Quarantine | Identified exit to Section 7 27530 | -2/Quarantine | Identified exit to Protoforge 27532 | -2/Quarantine | Entered Protoforge 27629 | -2/Protoforge | Superfortress began startup sequence 27714 | -2/Protoforge | Forge Plexus network access discovered 27726 | -2/Protoforge | Discovered new exit (range 15) 27730 | -2/Protoforge | Spotted Hotshot 27731 | -2/Protoforge | Spotted Hotshot 27731 | -2/Protoforge | Spotted Decapitator 27731 | -2/Protoforge | Spotted Decapitator 27734 | -2/Protoforge | Spotted Decapitator 27734 | -2/Protoforge | Destroyed Decapitator 27735 | -2/Protoforge | Spotted Decapitator 27735 | -2/Protoforge | Destroyed Decapitator 27735 | -2/Protoforge | Destroyed Decapitator 27739 | -2/Protoforge | Destroyed Decapitator 27741 | -2/Protoforge | Spotted Hotshot 27760 | -2/Protoforge | Destroyed Hotshot 27762 | -2/Protoforge | Destroyed Hotshot 27778 | -2/Protoforge | Spotted Hotshot 27782 | -2/Protoforge | First assault squad dispatched 27784 | -2/Protoforge | Destroyed Hotshot 27836 | -2/Protoforge | Spotted Decapitator 27836 | -2/Protoforge | Spotted Decapitator 27837 | -2/Protoforge | Spotted Decapitator 27837 | -2/Protoforge | Spotted Decapitator 27839 | -2/Protoforge | Destroyed Decapitator 27839 | -2/Protoforge | Destroyed Decapitator 27840 | -2/Protoforge | Destroyed Decapitator 27844 | -2/Protoforge | Spotted Decapitator 27844 | -2/Protoforge | Spotted Decapitator 27844 | -2/Protoforge | Spotted Decapitator 27846 | -2/Protoforge | Destroyed Decapitator 27846 | -2/Protoforge | Destroyed Decapitator 27847 | -2/Protoforge | Destroyed Decapitator 27859 | -2/Protoforge | Found Cep. Melee Reflex Suite 27870 | -2/Protoforge | Spotted Immortal 27872 | -2/Protoforge | Destroyed 30 combat bots 27875 | -2/Protoforge | Destroyed Immortal 27876 | -2/Protoforge | Found Prototype Device 27876 | -2/Protoforge | Identified Exp. Cloaking Device 27885 | -2/Protoforge | Found Cep. Beam Splitter 27896 | -2/Protoforge | Garrison activated, responded to threat 27926 | -2/Protoforge | Spotted Decapitator 27926 | -2/Protoforge | Spotted Decapitator 27926 | -2/Protoforge | Spotted V628-v 27926 | -2/Protoforge | Spotted V489-r 27926 | -2/Protoforge | Spotted Decapitator 27928 | -2/Protoforge | Destroyed 7 combat bots 27935 | -2/Protoforge | Destroyed Decapitator 27939 | -2/Protoforge | Destroyed Decapitator 27943 | -2/Protoforge | Destroyed Decapitator 27945 | -2/Protoforge | Destroyed V489-r 27971 | -2/Protoforge | Destroyed V628-v 27987 | -2/Protoforge | Found Exp. Force Booster 27989 | -2/Protoforge | Found Exp. Force Booster 28035 | -2/Protoforge | Spotted V744-k 28035 | -2/Protoforge | Spotted V578-c 28036 | -2/Protoforge | Spotted V374-f 28065 | -2/Protoforge | Reached level 34 28068 | -2/Protoforge | Upgraded with Utility slot (x1) 28077 | -2/Protoforge | Found Cep. Zero-point Core 28087 | -2/Protoforge | Core integrity fell below 50% 28087 | -2/Protoforge | Destroyed V374-f 28089 | -2/Protoforge | Destroyed V744-k 28092 | -2/Protoforge | Destroyed V578-c 28108 | -2/Protoforge | Found Prototype Device 28108 | -2/Protoforge | Identified Exp. Shield Generator 28119 | -2/Protoforge | System corruption reached 10% 28119 | -2/Protoforge | Spotted Decapitator 28119 | -2/Protoforge | Spotted Decapitator 28121 | -2/Protoforge | Destroyed Decapitator 28121 | -2/Protoforge | Destroyed Decapitator 28155 | -2/Protoforge | Spotted Immortal 28155 | -2/Protoforge | Spotted Immortal 28156 | -2/Protoforge | Spotted V903-c 28157 | -2/Protoforge | Spotted V853-w 28160 | -2/Protoforge | Spotted V165-l 28160 | -2/Protoforge | Destroyed V165-l 28160 | -2/Protoforge | Destroyed V853-w 28164 | -2/Protoforge | Destroyed V903-c 28191 | -2/Protoforge | Destroyed Immortal 28227 | -2/Protoforge | Spotted V899-p 28243 | -2/Protoforge | Destroyed Immortal 28254 | -2/Protoforge | Destroyed V899-p 28269 | -2/Protoforge | Spotted Decapitator 28269 | -2/Protoforge | Spotted Decapitator 28269 | -2/Protoforge | Spotted Decapitator 28270 | -2/Protoforge | Spotted Decapitator 28272 | -2/Protoforge | Destroyed Decapitator 28278 | -2/Protoforge | Destroyed Decapitator 28279 | -2/Protoforge | Destroyed Decapitator 28318 | -2/Protoforge | Destroyed 13 combat bots 28411 | -2/Protoforge | Incoming assault squad redirected 28450 | -2/Protoforge | Destroyed 10 combat bots 28459 | -2/Protoforge | Spotted EXE-6 28459 | -2/Protoforge | Spotted EXE-6 28460 | -2/Protoforge | Destroyed EXE-6 28470 | -2/Protoforge | Destroyed EXE-6 28529 | -2/Protoforge | Fabricated Exp. Actuator Array (x1) 28552 | -2/Protoforge | Incoming assault squad redirected 28554 | -2/Protoforge | Incoming assault squad redirected 28560 | -2/Protoforge | Spotted AP7-3 28560 | -2/Protoforge | Spotted AP7-3 28567 | -2/Protoforge | Spotted EXE-6 28567 | -2/Protoforge | Spotted EXE-6 28570 | -2/Protoforge | Destroyed EXE-6 28572 | -2/Protoforge | Destroyed EXE-6 28574 | -2/Protoforge | Spotted Overlord 28578 | -2/Protoforge | Spotted Decapitator 28584 | -2/Protoforge | Spotted Decapitator 28618 | -2/Protoforge | Destroyed Decapitator 28618 | -2/Protoforge | Destroyed Decapitator 28701 | -2/Protoforge | Destroyed AP7-3 28711 | -2/Protoforge | Destroyed AP7-3 28720 | -2/Protoforge | Spotted Hotshot 28722 | -2/Protoforge | Spotted Hotshot 28732 | -2/Protoforge | Destroyed Hotshot 28741 | -2/Protoforge | Spotted Hotshot 28741 | -2/Protoforge | Spotted Hotshot 28741 | -2/Protoforge | Spotted Hotshot 28753 | -2/Protoforge | Destroyed 14 combat bots 28755 | -2/Protoforge | Destroyed Hotshot 28756 | -2/Protoforge | Destroyed Hotshot 28759 | -2/Protoforge | Destroyed Hotshot 28781 | -2/Protoforge | Destroyed Hotshot 28808 | -2/Protoforge | Destroyed 8 combat bots 28984 | -2/Protoforge | Spotted B-90 Cyclops 28990 | -2/Protoforge | Destroyed B-90 Cyclops 29063 | -2/Protoforge | Found Cep. Zero-point Core 29148 | -2/Protoforge | Additional patrols dispatched to research labs 29149 | -2/Protoforge | Found Transdimensional Reconstructor 29203 | -2/Protoforge | Found Adv. Force Booster 29248 | -2/Protoforge | Reached level 35 29305 | -2/Protoforge | Destroyed 12 combat bots 29475 | -2/Protoforge | Destroyed 18 combat bots 29483 | -2/Protoforge | Found Cep. Weapon Articulator 29624 | -2/Protoforge | Destroyed 17 combat bots 29663 | -2/Protoforge | Spotted Hotshot 29663 | -2/Protoforge | Spotted Hotshot 29663 | -2/Protoforge | Spotted Hotshot 29664 | -2/Protoforge | Spotted Hotshot 29664 | -2/Protoforge | Destroyed Hotshot 29667 | -2/Protoforge | Destroyed Hotshot 29668 | -2/Protoforge | Destroyed Hotshot 29669 | -2/Protoforge | Destroyed Hotshot 29690 | -2/Protoforge | Spotted Hotshot 29693 | -2/Protoforge | Destroyed Hotshot 29694 | -2/Protoforge | Spotted Hotshot 29694 | -2/Protoforge | Spotted Hotshot 29697 | -2/Protoforge | Destroyed Hotshot 29698 | -2/Protoforge | Spotted Hotshot 29699 | -2/Protoforge | Destroyed Hotshot 29704 | -2/Protoforge | Destroyed Hotshot 29764 | -2/Protoforge | Destroyed 20 combat bots 29857 | -2/Protoforge | Destroyed Overlord 29912 | -2/Protoforge | Identified exit to Access 29926 | -2/Protoforge | Entered Access 29952 | -1/Access | Spotted B-99 Colossus 29961 | -1/Access | Destroyed B-99 Colossus 30002 | -1/Access | High security lockdown imminent 30006 | -1/Access | Reached level 36 30035 | -1/Access | Destroyed 10 combat bots 30082 | -1/Access | High security lockdown engaged 30113 | -1/Access | Spotted Executioner 30132 | -1/Access | Destroyed Executioner 30171 | -1/Access | Destroyed 19 combat bots 30184 | -1/Access | Spotted Striker 30188 | -1/Access | Garrison activated, responded to threat 30209 | -1/Access | Destroyed Striker 30278 | -1/Access | Spotted Striker 30278 | -1/Access | Spotted Executioner 30292 | -1/Access | Destroyed Striker 30296 | -1/Access | Destroyed Executioner 30317 | -1/Access | Destroyed 11 combat bots 30390 | -1/Access | Spotted Executioner 30390 | -1/Access | Spotted Striker 30403 | -1/Access | Destroyed Striker 30416 | -1/Access | Destroyed Executioner 30419 | -1/Access | Reached level 37 30443 | -1/Access | Upgraded with Utility slot (x1) 30443 | -1/Access | Found Exp. Core Analyzer 30496 | -1/Access | Spotted B-99 Colossus 30502 | -1/Access | Destroyed 30 combat bots 30567 | -1/Access | Spotted B-99 Colossus 30585 | -1/Access | Destroyed 13 combat bots 30726 | -1/Access | Garrison activated, responded to threat 30750 | -1/Access | Destroyed 13 combat bots 30787 | -1/Access | Discovered new exit (range 7) 30788 | -1/Access | Identified exit to Command 30809 | -1/Access | Spotted B-99 Colossus 30809 | -1/Access | Spotted B-99 Colossus 30819 | -1/Access | Destroyed B-99 Colossus 30825 | -1/Access | Destroyed B-99 Colossus 30838 | -1/Access | Spotted Striker 30842 | -1/Access | Spotted Striker 30842 | -1/Access | Destroyed Striker 30855 | -1/Access | Sterilization system engaged 30856 | -1/Access | Destroyed Striker 30881 | -1/Access | Destroyed 12 combat bots 30908 | -1/Access | Spotted Striker 30917 | -1/Access | Destroyed Striker 30935 | -1/Access | Spotted Executioner 30940 | -1/Access | Spotted Executioner 30954 | -1/Access | Destroyed Executioner 30956 | -1/Access | Destroyed Executioner 30964 | -1/Access | Spotted Executioner 30976 | -1/Access | Destroyed Executioner 31029 | -1/Access | Destroyed 32 combat bots 31030 | -1/Access | Spotted Striker 31030 | -1/Access | Spotted Executioner 31053 | -1/Access | Destroyed Striker 31065 | -1/Access | Destroyed Executioner 31080 | -1/Access | Reached level 38 31101 | -1/Access | Destroyed 7 combat bots 31110 | -1/Access | Spotted Striker 31110 | -1/Access | Spotted Executioner 31110 | -1/Access | Spotted Executioner 31134 | -1/Access | Destroyed Striker 31155 | -1/Access | Ambient heat levels rising (+10) 31158 | -1/Access | Destroyed Executioner 31160 | -1/Access | Destroyed Executioner 31271 | -1/Access | Destroyed 19 combat bots 31287 | -1/Access | Spotted Striker 31295 | -1/Access | Destroyed Striker 31297 | -1/Access | Spotted Executioner 31297 | -1/Access | Spotted Striker 31298 | -1/Access | Spotted Investigator 31298 | -1/Access | Destroyed Striker 31300 | -1/Access | Destroyed Investigator 31303 | -1/Access | Destroyed Executioner 31305 | -1/Access | Ambient heat levels rising (+10) 31305 | -1/Access | Found Prototype Launcher 31346 | -1/Access | Destroyed 15 combat bots 31366 | -1/Access | Entered Command 31384 | -1/Command | High security lockdown imminent 31464 | -1/Command | High security lockdown engaged 31510 | -1/Command | Destroyed 21 combat bots 31586 | -1/Command | Spotted Executioner 31592 | -1/Command | Destroyed Executioner 31672 | -1/Command | Destroyed 34 combat bots 31682 | -1/Command | Spotted Investigator 31692 | -1/Command | Spotted Executioner 31692 | -1/Command | Destroyed Executioner 31695 | -1/Command | Failed to warp due to unstable space 31727 | -1/Command | Destroyed Investigator 31791 | -1/Command | Destroyed 16 combat bots 31807 | -1/Command | Spotted Striker 31807 | -1/Command | Spotted Striker 31807 | -1/Command | Spotted Executioner 31817 | -1/Command | Spotted Executioner 31817 | -1/Command | Spotted Executioner 31817 | -1/Command | Spotted Executioner 31818 | -1/Command | Destroyed Striker 31824 | -1/Command | Destroyed Striker 31830 | -1/Command | Destroyed Executioner 31851 | -1/Command | Destroyed 10 combat bots 31896 | -1/Command | Destroyed Executioner 31926 | -1/Command | Destroyed Executioner 31939 | -1/Command | Reached level 39 31946 | -1/Command | Destroyed Executioner 31967 | -1/Command | Destroyed 7 combat bots 31981 | -1/Command | Spotted Striker 31981 | -1/Command | Spotted Striker 31981 | -1/Command | Spotted Executioner 31981 | -1/Command | Spotted Executioner 31982 | -1/Command | Spotted Investigator 31989 | -1/Command | Destroyed Striker 31990 | -1/Command | Destroyed Investigator 31991 | -1/Command | Destroyed Striker 32000 | -1/Command | Destroyed Executioner 32014 | -1/Command | Destroyed Executioner 32078 | -1/Command | Destroyed 21 combat bots 32087 | -1/Command | Spotted B-99 Colossus 32096 | -1/Command | Destroyed B-99 Colossus 32190 | -1/Command | Spotted Executioner 32190 | -1/Command | Destroyed Executioner 32191 | -1/Command | Spotted Executioner 32194 | -1/Command | Destroyed Executioner 32196 | -1/Command | Spotted Alpha 7 32196 | -1/Command | Spotted Striker 32198 | -1/Command | Spotted Striker 32204 | -1/Command | Destroyed Striker 32204 | -1/Command | Destroyed Striker 32212 | -1/Command | Spotted Executioner 32212 | -1/Command | Spotted Executioner 32212 | -1/Command | Spotted B-99 Colossus 32212 | -1/Command | Spotted Alpha 7 32221 | -1/Command | Spotted Striker 32225 | -1/Command | Destroyed 12 combat bots 32231 | -1/Command | Destroyed Striker 32246 | -1/Command | Spotted Executioner 32251 | -1/Command | Destroyed Executioner 32252 | -1/Command | Spotted Investigator 32255 | -1/Command | Destroyed Investigator 32280 | -1/Command | Destroyed Alpha 7 32286 | -1/Command | Destroyed Alpha 7 32304 | -1/Command | Destroyed B-99 Colossus 32314 | -1/Command | Spotted Executioner 32325 | -1/Command | Destroyed 20 combat bots 32345 | -1/Command | Destroyed Executioner 32368 | -1/Command | Spotted Executioner 32368 | -1/Command | Spotted Executioner 32369 | -1/Command | Spotted Striker 32369 | -1/Command | Spotted Striker 32381 | -1/Command | Destroyed Striker 32383 | -1/Command | Destroyed Striker 32394 | -1/Command | Spotted Striker 32399 | -1/Command | Destroyed Striker 32401 | -1/Command | Destroyed Executioner 32407 | -1/Command | Destroyed Executioner 32419 | -1/Command | Spotted B-99 Colossus 32437 | -1/Command | Destroyed Executioner 32438 | -1/Command | Destroyed Executioner 32438 | -1/Command | Spotted Striker 32438 | -1/Command | Spotted Executioner 32448 | -1/Command | Destroyed Striker 32453 | -1/Command | Destroyed Executioner 32485 | -1/Command | Destroyed 25 combat bots 32489 | -1/Command | Spotted Executioner 32489 | -1/Command | Spotted Striker 32490 | -1/Command | Destroyed Executioner 32494 | -1/Command | Destroyed Striker 32514 | -1/Command | Destroyed B-99 Colossus 32527 | -1/Command | Spotted Striker 32532 | -1/Command | Spotted Striker 32532 | -1/Command | Destroyed Striker 32539 | -1/Command | Spotted Investigator 32539 | -1/Command | Spotted Striker 32546 | -1/Command | Destroyed Investigator 32561 | -1/Command | Destroyed Striker 32563 | -1/Command | Destroyed Striker 32587 | -1/Command | Destroyed 15 combat bots 32606 | -1/Command | Spotted Executioner 32606 | -1/Command | Spotted Executioner 32612 | -1/Command | Destroyed Executioner 32614 | -1/Command | Destroyed Executioner 32637 | -1/Command | Destroyed 7 combat bots 32717 | -1/Command | Destroyed 11 combat bots 32738 | -1/Command | Spotted M Guard 32738 | -1/Command | Spotted M Guard 32738 | -1/Command | Spotted Combat Programmer 32742 | -1/Command | Spotted Combat Programmer 32752 | -1/Command | Destroyed Combat Programmer 32755 | -1/Command | Destroyed Combat Programmer 32937 | -1/Command | Destroyed M Guard 32942 | -1/Command | Destroyed M Guard 32942 | -1/Command | All MAIN.C guards destroyed 33038 | -1/Command | Met MAIN.C 33040 | -1/Command | 0b10 Conduit disabled 33241 | -1/Command | MAIN.C activated Command garrisons 33243 | -1/Command | Spotted B-99 Colossus 33249 | -1/Command | Discovered new exit (range 10) 33268 | -1/Command | Found Prototype Device 33268 | -1/Command | Identified Exp. System Purifier 33269 | -1/Command | Found Prototype Device 33269 | -1/Command | Identified Exp. Hardlight Generator 33275 | -1/Command | Found Prototype Reactor 33275 | -1/Command | Identified Zero-point Reactor 33279 | -1/Command | Found Prototype Reactor 33279 | -1/Command | Identified Vortex Chain Reactor 33295 | -1/Command | Found Exp. Melee Analysis Suite 33347 | -1/Command | Destroyed B-99 Colossus 33375 | -1/Command | Identified Containment Facilitator 33381 | -1/Command | Destroyed 12 combat bots 33543 | -1/Command | Core integrity fell below 50% 33560 | -1/Command | Destroyed 12 combat bots 33613 | -1/Command | Destroyed MAIN.C Shell 33653 | -1/Command | Destroyed MAIN.C 33654 | -1/Command | Discovered new exit (range 60) 33654 | -1/Command | Discovered new exit (range 181) 33654 | -1/Command | Extracted map data and part IDs from MAIN.C's data core 33907 | *** | Establishing 0b11! Last Messages --------------- 33898_ O-32 Director triggered Stasis Trap. 33898_ A bubble of rippling energy engulfs the area. 33898_ Field strength at 93. 33898_ Field strength at 76. 33899_ Field strength at 63. 33899_ Field strength at 86. 33900_ Field strength at 57. 33900_ Field strength at 79. 33901_ Field strength at 44. 33901_ Field strength at 72. 33902_ Field strength at 38. 33902_ Field strength at 65. 33903_ Field strength at 32. 33903_ Field strength at 58. 33904_ Field strength at 19. 33904_ Field strength at 51. 33905_ Field strength at 1. 33905_ Field strength at 44. 33906_ Stasis field depleted. 33907_ Field strength at 30. Map ----- +----------------------------------------------------+ | #"""%######+##???????????????????????????????????? | | #"""##????# #????????????????????????????????????? | | / %###### #????????????????????????????????????? | | +% #????????????????????????????????????? | | "" ########????????????????????????????????????? | | """"#???????????????????????????????????????????? | | """"#???????????????????????????????????????????? | | "" #???????????????????????????????????????????? | | #???????????????????????????????????????????? | | #???????????????????????????????????????????? | | ######???????????????????????????????????????????? | | = #????????????????????????????????????????????? | | #????????????????????????????????????????????? | | #????????????????????????????????????????????? | | #????????????????????????????????????????????? | | #####????????????????????????????????????????????? | | ##???????????????????????????????????????????????? | | #???????????????????????????????????????????????? | | #???????????????################????????????????? | | #???????????????################????????????????? | | ###????########### ##????????????????? | | # ##???##########; ##????????????????? | | /# #???### # # # ; ^^g^ ^^ ##????????????????? | | ="######^^^^^^^g^^ ^ ^ ##????????????????? | | *+ %% +^^ ^^^ ^^^ ^ ^ ##????????????????? | | "[ %=[+^ ^^ ^^^^ ^ "@ ^ ##????????????????? | | # ! ! +^ ^ ^ ^^^^ ^ "" ^ #######???????????? | | #*[ [+% ^^ ^ ^^ ^ ^ ### #########?### | | # [ ""^ ^ o^ ^ ^ ^ ### ## #?# | | # = * #""# # # # # ^^ ^ ^ ###[ ## #?# | | ## = "########### ### ## ### | | ?# ############ ### ## ! + + | | ?# %%% # #?################ ### | | ## # # # #?################# # ##### | | #####![[## #% #% ## ######+### | | % % =* *= [ % % / | | = %%%=%/ = [%= [%=*= % | | % % % % %[%* =%/ % | | *#%"# ### ##"# ## # ## #####+### = | | ### # # ## ## ## ##### | | # #?########## != ## #???? | | ## #??????????##! """ ## #???? | | ##???????????# ""T"" ## #???? | | ###????????????# "" "" ## #???? | | """Y""" #??????????????# ## #???? | | """"""" #??????????????#= ## #???? | | #############??????????????###################???? | | | | | | | +----------------------------------------------------+ Best States ------------- Heat Dissipation 124 Energy Generation 81 Energy Capacity 700 Matter Stores 300 Matter Capacity 300 Sight Range 16 Robot Scan Range 12 Terrain Scan Range 16 Terrain Scan Density 10 Jamming Range 16 Additional Mass Support 16 Base Temperature (-) 200 Corruption Containment 8 Armor Coverage 600 Resistance: KI 30 Resistance: TH 75 Resistance: EM 75 Power Shielding 33 Propulsion Shielding 33 Utility Shielding 66 Weapon Shielding 66 Projectile Deflection 50 Melee Speed Boost 50 Phase Shifting 20 Evasion (%) 101 Targeting Accuracy 30 Melee Accuracy 24 Target Analysis 8 Core Analysis 8 Force Boost 50 Offensive Hacking 5 Defensive Hacking 5 Trap Extractor Capacity 4 Item Schematics ----------------- Disposable Heat Sink | -9/Materials | Extracted Power Shielding | -9/Materials | Extracted EM Pulse Gun | -9/Materials | Extracted Imp. Terrain Scan Processor | -8/Materials | Extracted Med. Matter Pod | -8/Materials | Extracted Imp. Light Armor Plating | -8/Materials | Extracted Great Maul | -8/Materials | Extracted VTOL Module | -8/Materials | Extracted Visual Processing Unit | -8/Materials | Extracted Exp. Actuator Array | -7/Factory | Scanalyzed Combat Drone Bay | -7/Data Miner | Free Cld. Cesium-ion Thruster | -7/Data Miner | Free Lgt. Regenerative Plating | -7/Data Miner | Free Gravity Neutralizer | -7/Data Miner | Free Field Propulsion Drive | -7/Data Miner | Free Cld. Plasma Cannon | -7/Data Miner | Free Adv. Shield Generator | -7/Data Miner | Free Tesla Rifle | -7/Data Miner | Free Adv. Melee Analysis Suite | -6/Factory | Scanalyzed Lrn. Missile Launcher | -6/Zion | Archive IFF Parser | -6/Zion | Archive Imp. Arc Projector | -6/Zion | Archive HERF Cannon | -6/Zion | Archive Fusion Compressor | -6/Zion | Archive Variable Charge Gun | -6/Zion | Archive Imp. Particle Charger | -6/Zion | Archive Lyr. Heavy Armor Plating | -6/Zion | Archive Adv. Signal Interpreter | -6/Zion | Archive Imp. Trap Scanner | -6/Zion | Archive Arm. Medium Treads | -6/Zion | Archive Phase Shifter | -6/Zion | Archive Adv. Transmission Jammer | -6/Zion | Archive Riot Gun | -6/Zion | Free Flamer | -6/Zion | Free Battle Cannon | -6/Zion | Free Beamcaster | -6/Zion | Free Hvy. Beamcaster | -6/Zion | Free Imp. Matter Neutralizer | -3/Testing | Archive Prc. Energy Filter | -3/Testing | Archive Cld. Impulse Thruster | -3/Testing | Archive Shock Maul | -3/Testing | Archive Neutron Missile Launcher | -3/Testing | Archive Exp. Coolant Injector | -3/Testing | Archive Thunder Hammer | -3/Testing | Archive Adv. Dynamic Insulation System | -3/Testing | Archive Ionic Axe | -3/Testing | Archive Exp. Signal Interpreter | -3/Testing | Archive Diametric Drive | -3/Testing | Archive Cld. Antigrav System | -3/Testing | Archive Spectral Analyzer | -3/Testing | Archive Prc. Phase Gun | -3/Testing | Archive Hvy. Tesla Rifle | -3/Testing | Archive Exp. Target Analyzer | -3/Testing | Archive Nanosword | -3/Testing | Archive Centrium Greatsword | -3/Testing | Archive Com. Mass Driver | -2/Quarantine | Archive Exp. Power Amplifier | -2/Quarantine | Archive Exp. Energy Well | -2/Quarantine | Archive Exp. Q-thruster | -2/Quarantine | Archive Femtoactuators | -2/Quarantine | Archive Exp. Matter Compressor | -2/Quarantine | Archive Cld. Phase Gun | -2/Protoforge | Archive Adv. Remote Shield | -2/Protoforge | Archive Exp. Core Analyzer | -2/Protoforge | Archive Hvy. Antimatter Reactor | -2/Protoforge | Archive Prc. Matter Filter | -2/Protoforge | Archive Cld. Plasma Rifle | -2/Protoforge | Archive Exp. System Shield | -2/Protoforge | Archive Adv. EM Disruption Field | -2/Protoforge | Archive Hds. Centrium Wheel | -2/Protoforge | Archive Robot Schematics ------------------ R-10 Processor | -7/Data Miner | Free A-15 Conveyor | -7/Data Miner | Free S-27 Virus | -7/Data Miner | Free L-41 Fighter | -7/Data Miner | Free W-25 Informer | -6/Zion | Archive T-07 Excavator | -6/Zion | Archive H-55 Commando | -6/Zion | Archive X-82 Rainmaker | -6/Zion | Archive K-01 Serf | -4/Factory | Archive A-02 Transporter | -4/Factory | Archive R-06 Scavenger | -4/Factory | Archive M-14 Sweeper | -4/Factory | Archive M-22 Extractor | -4/Factory | Archive M-30 Cleanser | -4/Factory | Archive M-13 Machinist | -4/Factory | Archive M-28 Smith | -4/Factory | Archive M-36 Artificer | -4/Factory | Archive O-16 Technician | -4/Factory | Archive O-24 Administrator | -4/Factory | Archive O-32 Director | -4/Factory | Archive W-16 Scout | -4/Factory | Archive W-44 Eye | -4/Factory | Archive S-10 Pest | -4/Factory | Archive S-43 Plague | -4/Factory | Archive G-34 Mercenary | -4/Factory | Archive G-47 Trooper | -4/Factory | Archive G-50 Soldier | -4/Factory | Archive G-67 Veteran | -4/Factory | Archive G-73 Enforcer | -4/Factory | Archive B-36 Bruiser | -4/Factory | Archive B-48 Gladiator | -4/Factory | Archive B-60 Warrior | -4/Factory | Archive B-74 Champion | -4/Factory | Archive L-31 Rogue | -4/Factory | Archive L-61 Swordsman | -4/Factory | Archive Y-45 Defender | -4/Factory | Archive Y-54 Guardian | -4/Factory | Archive Y-64 Sentinel | -4/Factory | Archive Y-72 Warden | -4/Factory | Archive D-53 Grenadier | -4/Factory | Archive D-63 Destroyer | -4/Factory | Archive D-83 Annihilator | -4/Factory | Archive X-57 Shotgunner | -4/Factory | Archive X-62 Marksman | -4/Factory | Archive X-67 Chaingunner | -4/Factory | Archive X-72 Disruptor | -4/Factory | Archive X-77 Beamer | -4/Factory | Archive X-87 Electro | -4/Factory | Archive H-66 Slayer | -4/Factory | Archive H-77 Assassin | -4/Factory | Archive H-88 Terminator | -4/Factory | Archive P-60 Hacker | -4/Factory | Archive P-70 Sage | -4/Factory | Archive P-80 Master | -4/Factory | Archive C-55 Analyst | -3/Testing | Archive Fabricated ------------ Exp. Actuator Array | x1 | -7/Factory Exp. Actuator Array | x1 | -6/Factory Exp. Actuator Array | x1 | -2/Protoforge Repaired ---------- Nothing Studied --------- None Alien Tech Used ----------------- Integrated Dissipator Subatomic Replicator Transdimensional Reconstructor Achievements -------------- None Challenges ------------ None RPGLIKE | -11 -10 -10 -9 -9 -9 -8 -8 -8 -8 -7 -7 -7 -7 -7 -7 -6 -6 -6 -6 -6 -6 -5 -5 -5 -5 -5 -5 -4 -4 -4 -4 -4 -4 -3 -3 -3 -2 -2 -2 -1 -1 --------- Run | Yrd Mat Min Mat Min Exi Min Mat Gar Mat Fac Was Fac Low Low Dat Pro Fac Low Low Zio Dee Pro Fac Ext Cet Arc Hub Fac Was Fac Upp Upp Zhi Pro Res Tes Res Qua Frg Acc Com Levels Raised 38 | . 3 . 5 1 . 1 2 1 2 1 . 2 . . . 1 1 . . . 1 . 2 1 . . 1 1 . 1 . . . 1 1 1 1 1 2 3 1 XP Earned 61397 | 3000 4662 500 7665 978 117 1244 4165 1515 1697 1705 46 3000 169 149 73 1099 1845 430 334 82 224 935 2432 1418 245 156 2025 622 32 1305 215 359 73 701 1929 1034 1755 1287 3438 4206 2531 XP Spent 59585 | 3000 3850 . 5600 2000 . 3000 3550 . 4400 800 . 3500 225 . . . 1400 . . . 2900 . 1250 3200 . . 500 . . 4310 . . . . . 1250 . 2800 4850 4100 3100 Upgrades 68 | 10 6 . 6 1 . 5 4 . 2 1 . 4 3 . . . 1 . . . 1 . 1 1 . . 1 . . 10 . . . . . 4 . 2 2 1 2 Power Slot 1 | . . . . . . . . . . . . . . . . . . . . . . . . . . . 1 . . . . . . . . . . . . . . Propulsion Slot 5 | 1 1 . . . . . 1 . . . . . . . . . 1 . . . . . . . . . . . . . . . . . . . . 1 . . . Utility Slot 13 | 2 1 . 2 1 . . . . 1 . . 1 . . . . . . . . 1 . . 1 . . . . . 1 . . . . . . . . 1 1 . Weapon Slot 3 | 1 . . . . . . . . . . . . . . . . . . . . . . . . . . . . . . . . . . . 1 . 1 . . . Core Integrity 6 | . . . . . . . . . . . . . . . . . . . . . . . . . . . . . . 6 . . . . . . . . . . . Heat Dissipation 8 | 5 . . . . . . . . . . . . . . . . . . . . . . . . . . . . . 3 . . . . . . . . . . . Energy Generation 4 | . . . . . . . 2 . . 1 . . . . . . . . . . . . . . . . . . . . . . . . . . . . 1 . . Mass Support 6 | . 2 . 1 . . . 1 . 1 . . . . . . . . . . . . . . . . . . . . . . . . . . . . . . . 1 Inventory Capacity 5 | 1 2 . 1 . . . . . . . . . . . . . . . . . . . 1 . . . . . . . . . . . . . . . . . . Sensor Range 6 | . . . . . . . . . . . . . 3 . . . . . . . . . . . . . . . . . . . . . . 3 . . . . . Ranged Accuracy 5 | . . . . . . 5 . . . . . . . . . . . . . . . . . . . . . . . . . . . . . . . . . . . Melee Accuracy 4 | . . . . . . . . . . . . 3 . . . . . . . . . . . . . . . . . . . . . . . . . . . . 1 Hack Attack % 1 | . . . 1 . . . . . . . . . . . . . . . . . . . . . . . . . . . . . . . . . . . . . . Hack Defense % 1 | . . . 1 . . . . . . . . . . . . . . . . . . . . . . . . . . . . . . . . . . . . . . Protomatter Created 35113 | . 687 40 801 94 . 203 1116 485 1158 398 . 2359 84 71 . 447 732 499 236 . 406 298 1602 1218 170 161 3002 133 . 813 396 308 82 225 1060 713 477 290 4934 4145 5270 Integrity Restored 44891 | . 965 315 1581 429 . 561 1203 914 1431 950 . 3001 114 55 . 313 1699 1269 215 . 812 288 1687 1203 417 . 3732 202 . 1818 933 679 126 87 1590 333 378 363 5197 2902 7129 Core 33781 | . 743 264 1012 283 . 193 746 587 1082 789 . 2129 82 42 . 220 1373 800 178 . 679 215 1289 885 325 . 2769 107 . 1681 417 602 . 73 1223 147 240 223 4067 2368 5948 Parts 11110 | . 222 51 569 146 . 368 457 327 349 161 . 872 32 13 . 93 326 469 37 . 133 73 398 318 92 . 963 95 . 137 516 77 126 14 367 186 138 140 1130 534 1181 Protomatter Decayed 15558 | . 185 48 20 . 59 . 419 139 372 46 . 525 . 52 . 315 275 45 156 . 136 83 719 1003 14 161 933 3 . 46 6 . 38 160 1184 318 207 365 1753 1761 4012 Game ------ Seed BeamAdvancedExoskeleton Manual? 1 Play Time 07:49:08 Cumulative 697.8 hours Start 2026.07.25 @ 17:59:15 End 2026.07.30 @ 19:49:10 Sessions 13 Manual Loads 0 Difficulty Rogue Special Mode Winter2019/RPGLIKE Game No. 357 Rogue 203 Adventurer 154 Explorer 0 Win Type 1 Total 25 Types 4/7/5/3/2/1/0/1/1/1 Lore% 95 Gallery% 89 Achievement% 68 Wizard Run 0 Options --------- Layout 0 ASCII 0 Keyboard 0 Movement Numpad Keybinds 0 Fullscreen 2 Font 18/SmallcapsGlow Map View 76x50 Zoom Use 0% Tactical HUD 1 Map Filters NONE Filters NONE Steam 1 RUN: eba57d68-f2f7-4e58-94c6-9380cac58a1e